Cogmind - Beta 16 @@@ ROGUE MODE // 2026.01.13 @ 14:25:26 Player: AngelSpirit Result: Crushed by singularity! Performance ------------- Evolutions (9) 4500 Regions Visited (35) 7000 Robots Destroyed (531) 2655 Value Destroyed (32226) 32226 Prototype IDs (383) 7660 Alien Tech Used (5) 1000 Bonus (56026) 56026 TOTAL SCORE: 111067 Bonus ------- High Alert Combat Kills 5578 Follower Combat Kills 1947 Destroyed Unchained 2000 Entered Garrisons 200 Network Hubs Disabled 400 Acquired ECA 300 Met Zhirov 300 Met Warlord at Base 500 MAIN.C Attacked Warlord 500 Warlord Defense Kills 1486 Built Enhanced Grunts 300 A7 Reached Mainframe 300 Met R17 at Cetus 500 Met Warlord at Research 2000 Invited to Help at Command 2000 Destroyed MAIN.C Guards 500 Met MAIN.C 5000 Hacked MAIN.C 300 Destroyed MAIN.C Shell 5000 Destroyed MAIN.C 10000 Met Warlord at Command 2000 Met Architect 300 Destroyed A8 300 Destroyed Architect 15000 Friendly Fire -685 Cogmind --------- Core Integrity 0/1600 Matter 280/300 Energy 677/866 System Corruption 0% Temperature Cool (0) Movement Treading (36) Location -1/Access_0 Parts ------- > --- POWER (2) -------- Quantum-Graviton Reactor > --- PROPULSION (6) --- Treaded Siege-QT Exoskeleton > --- UTILITY (13) ----- Armored Scrap Engine Concept Thermoelectric Network Concept Antigrav Storage Unit Spectral Analyzer Concept Countertargeting System Experimental Core Analyzer Experimental Armor Integrity Analyzer Improved Particle Accelerator Advanced Weapon Cycler Concept Phase Shift Module Experimental Shield Generator > --- WEAPON (4) ------- Hvy. Laser Potential Construct/C > --- INVENTORY (25) --- Zero-point Reactor Zero-point Reactor Concept Phasing Heat Sink Concept Phasing Heat Sink Concept Thermoelectric Network Experimental Energy Well (600) Concept Chromion Battery (800) Concept NT7 Matterbank (750) Concept Networked Targeting System Experimental Core Analyzer Experimental Kinecellerator Quantum Capacitor Experimental Reaction Control System SHELL Armor Concept RG22 Armor Graphene Brace Thermal Barrier Advanced Force Field Experimental System Purifier Concept Matter Streamer Core Regenerator Peak State ------------ > --- POWER ------------ Quantum-Graviton Reactor > --- PROPULSION ------- Treaded Siege-QT Exoskeleton > --- UTILITY ---------- Armored Scrap Engine Concept Antigrav Storage Unit Spectral Analyzer Advanced Signal Interpreter Concept Countertargeting System Concept Networked Targeting System Experimental Core Analyzer Experimental Armor Integrity Analyzer Experimental Reaction Control System Concept Phase Shift Module Concept Cloak Mesh Concept RG22 Armor > --- WEAPON ----------- Perforator Hvy. Laser Potential Construct/C Concept Deflector Sword > --- INVENTORY -------- Concept Phasing Heat Sink Concept Phasing Heat Sink Concept Thermoelectric Network Concept Thermoelectric Network Concept Chromion Battery Concept NT7 Matterbank Advanced Sensor Array Improved Particle Accelerator Experimental Kinecellerator Quantum Capacitor SHELL Armor Graphene Brace Thermal Barrier Experimental EM Shield Experimental Shield Generator Concept Antimissile System Concept Matter Streamer Transdimensional Reconstructor Advanced Remote Datajack [Rating: 283] Favorites ----------- Power Constructs Engine Subdweller Power Source Power Core Light Nuclear Core Reactor Constructs Propulsion Constructs Treads Constructs Wheel Wheel Flight Unit Improved Flight Unit Utility Armored Scrap Engine Device Armored Scrap Engine Storage Huge Storage Unit Processor Advanced Signal Interpreter Hackware Hacking Suite Protection Concept RG22 Armor Artifact Phase Redirector Weapon Constructs Energy Gun Subdweller Laser Energy Cannon Constructs Ballistic Gun Enhanced Autogun Ballistic Cannon Perforator Launcher Concept Concussive Dispersal Blaster Special Weapon Improved Remote Datajack Impact Weapon Maul Slashing Weapon Concept Deflector Sword Build | -11 -10 -10 -8 -8 -8 -6 -6 -6 -6 -6 -6 -6 -6 -5 -5 -5 -5 -5 -5 -4 -4 -4 -4 -4 -4 -4 -3 -3 -3 -3 -2 -2 -1 -1 -1 ------- Run | Yrd Mat Sub Mat Sto Rec Fac Was Fac Ext Cet Arc Hub Gar Fac Was Fac Upp Upp Zhi Pro Fac Was Fac Upp Upp War Pro Res Qua Frg Res Tes Acc Com Ac0 Slots Evolved 18 | . . . 4 . . 4 . . . . . . . 2 . . . . . . 2 . . . . . . 2 . . 2 . 2 . . Power 1 | . . . . . . . . . . . . . . . . . . . . . 1 . . . . . . . . . . . . . . Propulsion 4 | . . . 1 . . 2 . . . . . . . 1 . . . . . . . . . . . . . . . . . . . . . Utility 11 | . . . 2 . . 2 . . . . . . . 1 . . . . . . 1 . . . . . . 2 . . 2 . 1 . . Weapon 2 | . . . 1 . . . . . . . . . . . . . . . . . . . . . . . . . . . . . 1 . . Parts Attached 235 | 8 6 27 19 14 7 5 . . 2 1 . 5 . 6 . 4 1 2 2 1 8 . 11 . 2 4 2 10 7 32 13 14 2 19 1 Power 9 | 2 . 3 2 2 . . . . . . . . . . . . . . . . . . . . . . . . . . . . . . . Engine 7 | 2 . 3 . 2 . . . . . . . . . . . . . . . . . . . . . . . . . . . . . . . Core 2 | . . . 2 . . . . . . . . . . . . . . . . . . . . . . . . . . . . . . . . Reactor . | . . . . . . . . . . . . . . . . . . . . . . . . . . . . . . . . . . . . Propulsion 23 | 2 1 10 5 3 2 . . . . . . . . . . . . . . . . . . . . . . . . . . . . . . Treads . | . . . . . . . . . . . . . . . . . . . . . . . . . . . . . . . . . . . . Leg . | . . . . . . . . . . . . . . . . . . . . . . . . . . . . . . . . . . . . Wheel 22 | 2 1 10 4 3 2 . . . . . . . . . . . . . . . . . . . . . . . . . . . . . . Hover . | . . . . . . . . . . . . . . . . . . . . . . . . . . . . . . . . . . . . Flight 1 | . . . 1 . . . . . . . . . . . . . . . . . . . . . . . . . . . . . . . . Utility 151 | 2 3 7 6 4 2 4 . . 2 1 . 5 . 6 . 4 1 2 2 1 7 . 8 . 2 4 2 10 7 26 9 7 1 15 1 Device 88 | 1 . 4 3 . 2 1 . . 1 . . 3 . 4 . 3 1 2 1 1 4 . 6 . 2 2 2 4 1 18 7 6 1 8 . Storage 11 | 1 3 1 . . . . . . 1 . . . . . . . . . . . 1 . 1 . . . . 1 . 1 . . . 1 . Processor 23 | . . . . . . 1 . . . . . 1 . 2 . . . . . . 2 . . . . 2 . 1 3 5 1 . . 5 . Hackware 7 | . . . . . . 1 . . . . . 1 . . . 1 . . . . . . 1 . . . . . 1 . . 1 . . 1 Protection 21 | . . 2 3 4 . 1 . . . 1 . . . . . . . . 1 . . . . . . . . 4 1 2 1 . . 1 . Artifact 1 | . . . . . . . . . . . . . . . . . . . . . . . . . . . . . 1 . . . . . . Weapon 52 | 2 2 7 6 5 3 1 . . . . . . . . . . . . . . 1 . 3 . . . . . . 6 4 7 1 4 . Energy Gun 12 | 1 . 2 . 3 . . . . . . . . . . . . . . . . . . . . . . . . . 2 . 3 . 1 . Energy Cannon 9 | . 2 1 . 1 . . . . . . . . . . . . . . . . . . . . . . . . . 1 1 2 . 1 . Ballistic Gun 14 | 1 . 3 4 1 3 . . . . . . . . . . . . . . . . . . . . . . . . . 1 . . 1 . Ballistic Cannon 8 | . . 1 . . . . . . . . . . . . . . . . . . . . 2 . . . . . . . 2 2 . 1 . Launcher 2 | . . . 1 . . . . . . . . . . . . . . . . . . . . . . . . . . 1 . . . . . Special Weapon 2 | . . . . . . . . . . . . . . . . . . . . . 1 . . . . . . . . . . . 1 . . Impact Weapon 3 | . . . 1 . . . . . . . . . . . . . . . . . . . 1 . . . . . . 1 . . . . . Slashing Weapon 2 | . . . . . . 1 . . . . . . . . . . . . . . . . . . . . . . . 1 . . . . . Piercing Weapon . | . . . . . . . . . . . . . . . . . . . . . . . . . . . . . . . . . . . . Special Melee Weapon . | . . . . . . . . . . . . . . . . . . . . . . . . . . . . . . . . . . . . Unidentified Prototypes 71 | . . . 2 5 1 . . . . 1 . 2 . 1 . . . . 3 . 2 . 5 . . 3 . 6 4 15 6 11 . 3 1 Parts Lost 29 | . 1 5 2 2 1 . . . . . . 1 . . . . . . . 2 4 . 1 . . . . . . 9 . . 1 . . Power 3 | . . . 1 . . . . . . . . . . . . . . . . . 1 . . . . . . . . 1 . . . . . Propulsion 6 | . . 3 . 2 . . . . . . . . . . . . . . . . . . . . . . . . . 1 . . . . . Utility 14 | . . 2 . . 1 . . . . . . 1 . . . . . . . 2 2 . 1 . . . . . . 4 . . 1 . . Weapon 6 | . 1 . 1 . . . . . . . . . . . . . . . . . 1 . . . . . . . . 3 . . . . . Highest Loss Streak 4 | . 1 1 1 1 1 . . . . . . 1 . . . . . . . 2 2 . 1 . . . . . . 4 . . 1 . . To Critical Strikes . | . . . . . . . . . . . . . . . . . . . . . . . . . . . . . . . . . . . . Average Backups 19 | . 7 6 8 19 16 11 17 19 18 19 20 19 20 22 24 23 23 24 24 23 23 23 23 23 23 23 23 22 22 21 21 22 20 20 20 Power . | . 1 1 1 1 . . . . . . . . . . . . . . . . . . . . . . . . . . . . . . 2 Propulsion . | . 1 1 1 5 3 1 1 2 2 2 2 2 2 1 1 1 1 1 1 1 . . . . . . . . . . . . . . . Utility 14 | . 3 . 1 5 5 6 12 14 13 14 15 14 15 17 21 18 19 19 19 19 20 21 20 20 20 19 18 17 16 15 19 20 18 18 17 Weapon 2 | . . 2 3 7 6 2 2 2 2 2 2 2 2 1 1 1 2 1 1 1 . . 1 . . 3 4 4 4 2 . . . . . Tool/Special . | . . . . . . . . . . . . . . . . . . . . . . . . . . . . . . . . . . . . Unused Backups 101 | . 1 7 1 4 10 5 1 3 . 1 . . 3 3 1 3 . . 2 . 4 . 7 1 . 3 2 3 4 11 6 3 . 2 10 Power 5 | . 1 2 . . . . . . . . . . . . . . . . . . . . . . . . . . . . . . . . 2 Propulsion 11 | . . . . 1 5 . . . . . . . . 1 . . . . . . 1 . . . . . . . . . . . . 2 1 Utility 45 | . . 1 . 3 . 2 . 2 . 1 . . 3 1 1 2 . . 1 . 2 . 3 . . 1 2 3 2 6 1 2 . . 6 Weapon 29 | . . 4 1 . 5 3 1 1 . . . . . 1 . . . . . . 1 . 3 1 . . . . . 4 4 . . . . Tool/Special 11 | . . . . . . . . . . . . . . . . 1 . . 1 . . . 1 . . 2 . . 2 1 1 1 . . 1 Average Slot Usage (%) 63 | . 99 85 94 98 70 58 53 53 53 53 53 53 53 52 52 51 52 52 51 52 54 52 60 53 52 53 52 56 56 57 65 64 67 60 60 Engine 3 | . 14 13 3 6 8 6 6 6 6 6 6 6 5 . . . . . . . 1 . 3 1 . 1 . 1 4 . . . . . . Reactor 2 | . . . . . . . . . . . . . . 5 5 5 5 5 5 5 3 5 . 3 5 5 5 2 . 3 4 4 4 4 4 Treads 1 | . . . . . 1 6 3 . . . 1 6 6 . . . . . . . 1 . . . . . . . . . 1 . . 2 4 Leg 1 | . . . . . . . 2 6 6 6 4 . . 4 5 5 5 5 5 5 1 . . 3 5 2 4 3 4 3 1 . . . . Wheel 5 | . 28 27 25 26 13 . . . . . . . . . . . . . . . . . . . . . . . . . . . . . . Device 15 | . 14 2 12 9 15 13 13 13 13 13 13 14 13 17 17 11 11 11 10 13 11 14 14 15 15 14 15 17 16 18 20 20 20 22 32 Storage 5 | . 14 5 9 9 9 6 6 6 6 6 6 6 6 5 5 5 5 5 5 5 5 5 5 5 5 5 5 4 4 4 4 4 4 4 4 Processor 10 | . . . . . . 4 . . . . . 2 6 9 11 11 11 11 11 8 12 15 15 15 15 15 15 14 18 17 17 17 16 19 12 Hackware 1 | . . . . . . 5 6 6 6 6 6 4 6 1 . 4 5 5 5 5 5 . . . . . . . . . . 3 4 . . Protection 2 | . . 7 11 17 5 1 6 6 6 6 6 3 . . . . . . . . . . . . . . . 4 2 1 3 1 3 1 . Energy Cannon 3 | . 17 10 . . . 1 4 6 6 6 6 6 6 5 5 5 5 5 5 5 4 . 1 . . . . . . 3 2 2 4 2 4 Ballistic Gun 3 | . 8 7 25 25 12 5 . . . . . . . . . . . . . . . . . . . . . . . . . . . . . Ballistic Cannon 2 | . . 5 . . . 1 1 . . . . . . . . . . . . . 1 5 7 5 5 5 5 4 3 . 1 4 4 2 . Peak Build Rating 283 | 7 8 32 52 50 48 73 95 96 98 102 100 109 103 125 128 125 125 126 128 128 138 132 144 142 145 159 163 180 176 230 258 258 277 283 266 Average Rating 139 | 4 7 14 45 37 40 56 85 95 96 98 99 101 102 118 126 123 124 124 125 124 129 126 136 140 141 152 161 173 171 182 243 247 273 252 261 On Entrance 122 | . 7 8 32 50 36 47 73 95 95 98 99 100 103 103 123 124 123 124 124 126 123 129 127 144 142 142 156 162 169 167 210 240 258 275 262 Avg Prop Armor Cover (%) 3 | . . 4 2 . . . . . . . . . . . . . . . . . . . . . . . . . . . . . . . . Naked Turns . | . . . . . . . . . . . . . . . . . . . . . . . . . . . . . . . . . . . . Heaviest Build 217 | 14 52 217 109 112 110 108 108 108 109 109 109 111 102 115 115 116 115 116 112 119 132 123 119 117 113 130 128 159 159 139 82 89 95 122 96 Greatest Support 303 | 32 32 40 52 36 56 125 125 125 125 125 125 125 125 193 193 193 193 193 193 193 263 190 190 158 158 186 197 278 278 208 303 161 161 260 260 Greatest Overweight (x) 10 | . 1 10 4 5 3 2 . . . . . . . . . . . . . . . . . 1 . . . . . 1 . . . . . Average Overweight (x) . | . . 2 2 3 2 1 . . . . . . . . . . . . . . . . . . . . . . . . . . . . . Largest Inventory Capacity 35 | 8 25 35 25 25 25 25 25 25 25 25 25 25 25 25 25 25 25 25 25 25 25 25 25 25 25 25 25 25 25 25 25 25 25 25 25 Average Capacity 23 | 7 19 16 25 25 25 25 25 25 25 25 25 25 25 25 25 25 25 25 25 25 25 25 25 25 25 25 25 25 25 25 25 25 25 25 25 Most Carried 25 | 2 12 25 25 25 25 16 25 25 25 25 25 25 25 25 25 25 25 25 25 25 25 25 25 25 25 25 25 25 25 25 25 25 25 25 25 Average Carried 21 | . 7 8 24 22 17 12 22 24 23 24 25 24 24 23 25 24 24 25 24 24 24 24 24 24 24 24 24 24 24 24 23 24 23 24 24 Final Capacity 25 | 8 20 25 25 25 25 25 25 25 25 25 25 25 25 25 25 25 25 25 25 25 25 25 25 25 25 25 25 25 25 25 25 25 25 25 25 Final Carried 25 | 1 11 25 25 24 11 15 25 24 24 25 25 25 25 25 25 24 25 25 25 23 25 25 25 24 25 25 25 25 24 24 25 25 24 24 24 Scrap Engine Consumption 473 | . . . . . 46 22 6 1 6 9 2 2 11 10 3 3 1 . 1 . 44 4 10 9 1 31 1 6 5 92 43 8 5 90 1 Constructs Created 7 | . . . . . 3 . . . . . . . . . . . . . . . 2 . . . . . . . . 1 1 . . . . Constructs Modified 194 | . . . . . 12 7 3 . . . 4 . 1 5 . . . . . . 27 . 4 7 . 15 1 6 2 35 19 3 1 42 . Class Distribution -------------------- 67% | Construct 7% | Mutant 5% | Commander-Construct 4% | Tank 3% | Scavenger-Construct 3% | Subdweller-Mutant Dominant Class ---------------- Mutant | -10/Materials Subdweller-Mutant | -10/Subcaves Scavenger-Tank | -8/Materials Tank | -8/Storage Construct | -8/Recycling Construct | -6/Factory Construct | -6/Waste Construct | -6/Factory Construct | -6/Extension Commander-Construct | -6/Cetus Commander-Construct | -6/Archives Commander-Construct | -6/Hub_04(d) Construct | -6/Garrison Construct | -5/Factory Construct | -5/Waste Construct | -5/Factory Construct | -5/Upper Caves Construct | -5/Upper Caves Construct | -5/Zhirov Construct | -4/Proximity Caves Construct | -4/Factory Construct | -4/Waste Construct | -4/Factory Construct | -4/Upper Caves Construct | -4/Upper Caves Construct | -4/Warlord Commander-Construct | -3/Proximity Caves Construct | -3/Research Construct | -3/Quarantine Construct | -3/Protoforge Construct | -2/Research Construct | -2/Testing Ninja | -1/Access Construct | -1/Command Scavenger-Construct | -1/Access_0 Resources | -11 -10 -10 -8 -8 -8 -6 -6 -6 -6 -6 -6 -6 -6 -5 -5 -5 -5 -5 -5 -4 -4 -4 -4 -4 -4 -4 -3 -3 -3 -3 -2 -2 -1 -1 -1 ----------- Run | Yrd Mat Sub Mat Sto Rec Fac Was Fac Ext Cet Arc Hub Gar Fac Was Fac Upp Upp Zhi Pro Fac Was Fac Upp Upp War Pro Res Qua Frg Res Tes Acc Com Ac0 Matter Collected 22995 | 196 254 705 717 1267 432 326 149 60 400 215 60 200 673 1439 723 220 159 709 . 476 1477 . 927 116 550 184 272 516 620 3684 553 1290 640 2766 20 Remotely 1546 | . . . . . . . . . . . . . . . . . . . . 85 541 . . . . . . . . . . 456 264 200 . Salvage Created 34867 | 13 342 593 769 1392 305 130 200 292 1221 491 222 245 1805 1622 1713 405 87 631 . 321 2570 . 1318 367 1025 655 757 1524 993 3470 851 1172 976 5923 467 Parts 1417 | 4 21 39 41 73 13 10 1 . 28 6 5 11 79 60 26 23 3 22 . 17 113 . 66 12 44 32 19 57 64 219 23 47 39 180 20 Haulers Intercepted 22 | . 1 . 1 2 . . . 2 . . . . . 4 . 1 . . . . 2 . 2 . . . . 1 . . 3 1 2 . . Recyclers Shooed 7 | . 1 . . 1 . . . . . . . . . . . . . . . . . . 2 . . . . 2 . . . . 1 . . Parts Field Recycled . | . . . . . . . . . . . . . . . . . . . . . . . . . . . . . . . . . . . . Retrieved Matter . | . . . . . . . . . . . . . . . . . . . . . . . . . . . . . . . . . . . . Parts Self-Destructed 120 | . . 7 . . . . . . . . . . . . . . 5 32 . 17 . . . 10 31 . 18 . . . . . . . . Prevented 4 | . . . . . . . . . . . . . . . . . . 4 . . . . . . . . . . . . . . . . . Parts Restored 5 | . . . . . . . . . . . . . . . . . . . . . . . . . . . . . . 2 3 . . . . Faulty 5 | . . . . . . . . . . . . . . . . . . . . . . . . . . . . . . 2 3 . . . . Kills | -11 -10 -10 -8 -8 -8 -6 -6 -6 -6 -6 -6 -6 -6 -5 -5 -5 -5 -5 -5 -4 -4 -4 -4 -4 -4 -4 -3 -3 -3 -3 -2 -2 -1 -1 -1 ------- Run | Yrd Mat Sub Mat Sto Rec Fac Was Fac Ext Cet Arc Hub Gar Fac Was Fac Upp Upp Zhi Pro Fac Was Fac Upp Upp War Pro Res Qua Frg Res Tes Acc Com Ac0 Combat Hostiles Destroyed 410 | . 8 14 12 19 7 2 . 1 17 6 2 3 34 11 6 4 1 13 . 11 29 . 13 4 15 9 10 13 16 66 8 9 8 35 4 Melee 1 | . . . . . . . . . . . . . . . . . . . . . . . . . . . . . . . 1 . . . . Guns 62 | . 3 5 11 19 7 1 . . . . . . . . . . . . . . . . . . . . . . . 7 . . . 9 . Cannons 329 | . 5 9 . . . 1 . 1 11 4 2 3 34 11 6 4 1 13 . 11 26 . 11 4 15 8 10 13 16 58 7 9 7 25 4 AOE 8 | . . . 1 . . . . . . . . . . . . . . . . . 3 . 1 . . . . . . 1 . . 1 1 . Classes Destroyed 32 | 1 5 4 2 1 . . . . 1 . 1 2 3 . 1 1 1 . . . . . 1 . . 1 1 . . 4 1 . . 1 . Worker 16 | . 1 . 1 2 . . . . . . . . . 1 . 1 . . . . . . 3 . . . . 2 . . . 1 . 4 . Builder 11 | . . . 1 1 . . . . 1 . . . . 2 . . . . . . 2 . 1 . . . . 1 . . . 2 . . . Tunneler 5 | 1 . . . . . . . . . . . . . 1 . . . . . . 2 . 1 . . . . . . . . . . . . Hauler 22 | . 1 . 1 2 . . . 2 . . . . . 4 . 1 . . . . 2 . 2 . . . . 1 . . 3 1 2 . . Recycler 18 | . . . 1 2 . . . . . . . . . 2 . 1 . . . . 4 . . . . . . 2 . . . 1 1 4 . Minesweeper 2 | . . . . . . . . . . . . . . . . . 1 . . . . . . . . . 1 . . . . . . . . Mechanic 1 | . . . . . . . . . . . . . . . . . . . . . . . . . . . . . . . . . . 1 . Operator 6 | . . . . 1 . . . . . . . 1 . . . . . . . . 1 . . . . . . 1 . . . . . 2 . Drone 7 | . . . . . . . . . . . . . . . . . . . . . . . . . . . . . . 7 . . . . . Watcher 37 | . 2 . . 2 . . . . 1 2 . 1 2 6 . . . . . . . . 5 . . . . 1 2 3 1 3 2 4 . Swarmer 36 | . 3 . . . . . . . . . . . 9 . . . . 6 . 10 4 . . . 2 . . . . . 2 . . . . Cutter 3 | . . . . . . . . . . . . . . . . 3 . . . . . . . . . . . . . . . . . . . Saboteur 1 | . . . . . . . . . . . . . . . . . . . . . . . . . . . . . . 1 . . . . . Grunt 133 | . 5 . 8 12 . . . 1 7 . . 1 15 4 . . 1 2 . . 15 . 6 2 2 4 6 8 2 6 4 4 2 16 . Brawler 7 | . . . . . . . . . . . . . 1 . . . . 2 . . . . . 1 . . . 1 . 1 . . . 1 . Duelist 2 | . . . . . . . . . . . . . . . . . . . . . . . . . 1 . . . . 1 . . . . . Protector 3 | . . . . . . . . . . . . 1 . . . . . . . . . . . . . 1 . 1 . . . . . . . Sentry 55 | . . 1 4 7 1 2 . . 8 . 2 . 4 1 . 1 . 1 . 1 4 . 1 . 1 . . 2 . 8 1 . 1 4 . Specialist 2 | . . . . . . . . . . . . . 2 . . . . . . . . . . . . . . . . . . . . . . Hunter 14 | . . . . . . . . . . . . 1 2 . . . . 2 . . 2 . . . 2 . . . . . . 2 . 3 . Programmer 58 | . . . . . . . . . . . . . 1 6 . . . . . . 4 . 5 1 1 1 . . 14 11 . 2 5 7 . Heavy 1 | . . . . . . . . . . . . . . . . . . . . . . . 1 . . . . . . . . . . . . Behemoth 5 | . . . . . . . . . 2 . . . . . . . . . . . . . . . . 1 . 1 . . . . . 1 . Compactor 6 | . . . . . . . . . . . . . . . 6 . . . . . . . . . . . . . . . . . . . . Cetus Guard 6 | . . . . . . . . . . 6 . . . . . . . . . . . . . . . . . . . . . . . . . Enhanced Grunt 2 | . . . . . . . . . . . . . . . . . . . . . . . . . . . . . . . . . . . 2 CL-0N3 Special 1 | . . . . . . . . . . . . . . . . . . . . . . . . . 1 . . . . . . . . . . Hotshot 4 | . . . . . . . . . . . . . . . . . . . . . . . . . . . . . . 4 . . . . . Decapitator 18 | . . . . . . . . . . . . . . . . . . . . . . . . . . . . . . 18 . . . . . Combat Programmer 1 | . . . . . . . . . . . . . . . . . . . . . . . . . . . . . . . . . . 1 . Striker 1 | . . . . . . . . . . . . . . . . . . . . . . . . . . . . . . . 1 . . . . Executioner 2 | . . . . . . . . . . . . . . . . . . . . . . . . . . 2 . . . . . . . . . Alpha 7 2 | . . . . . . . . . . . . . . . . . . . . . . . . . . . . . . 2 . . . . . V-Series 7 | . . . . . . . . . . . . . . . . . . . . . . . . . . . . . . 7 . . . . . Artisan 1 | . . 1 . . . . . . . . . . . . . . . . . . . . . . . . . . . . . . . . . Cobbler 1 | . . 1 . . . . . . . . . . . . . . . . . . . . . . . . . . . . . . . . . Subdweller 19 | . . 13 . . 6 . . . . . . . . . . . . . . . . . . . . . . . . . . . . . . Decomposer 1 | . . . . . . . . . . . . . . . . . . . . . . . . 1 . . . . . . . . . . . Packrat 1 | . . . . . . . . . . . . . . . . . . . . . . . . 1 . . . . . . . . . . . Thug 6 | . . . . . . . . . . . . . . . . . . . . . . . . . 4 . . . . . . . . 2 . Butcher 4 | . . . . . . . . . . . 1 . . . . . . . . . . . . . . . 3 . . . . . . . . Guerrilla 2 | . . . . . . . . . . . . . . . . . . . . . . . . . . . . . . . . . . 2 . Mutant 1 | . . . . . . . . . . . . . . . . . . . . . . . . . . . 1 . . . . . . . . Best Kill Streak 13 | 1 3 2 4 7 1 1 . 2 4 4 1 2 7 7 5 3 1 5 . 5 13 . 4 2 6 2 4 6 5 8 4 6 4 10 3 Combat Bots Only 11 | . 3 2 3 5 1 1 . 1 3 3 1 2 7 4 5 3 1 5 . 5 11 . 3 2 6 2 4 5 3 8 4 4 2 7 3 Max Kills in Single Turn 5 | 1 1 1 2 2 1 1 . 1 1 1 1 1 1 2 1 1 1 1 . 1 2 . 2 1 1 1 2 2 2 2 1 2 2 5 1 Gunslinging . | . . . . . . . . . . . . . . . . . . . . . . . . . . . . . . . . . . . . Exploded 2 | . . . 1 . . . . . . . . . . . . . . . . . 2 . 1 . . . . . . 1 . . 1 1 . Melee 1 | . . . . . . . . . . . . . . . . . . . . . . . . . . . . . . . 1 . . . . Uniques/NPCs Destroyed 6 | . . . . . . . . . . . . . . . . . . . . . . . . . 1 . . . . . . 1 . 2 2 CL-0N3 (-4/Upper Caves) 6S-H0T (-2/Testing) MAIN.C Shell (-1/Command) MAIN.C (-1/Command) A8 (-1/Access_0) Architect (-1/Access_0) Combat | -11 -10 -10 -8 -8 -8 -6 -6 -6 -6 -6 -6 -6 -6 -5 -5 -5 -5 -5 -5 -4 -4 -4 -4 -4 -4 -4 -3 -3 -3 -3 -2 -2 -1 -1 -1 -------- Run | Yrd Mat Sub Mat Sto Rec Fac Was Fac Ext Cet Arc Hub Gar Fac Was Fac Upp Upp Zhi Pro Fac Was Fac Upp Upp War Pro Res Qua Frg Res Tes Acc Com Ac0 Hostile Shots Fired 1702 | . 53 74 49 66 21 45 . 4 72 8 . 14 115 26 . 4 5 51 . 40 179 . 42 . 40 10 . 19 71 420 66 44 29 110 25 Missed 583 | . 19 21 12 22 4 21 . 2 32 7 . 3 37 9 . 2 3 21 . 9 57 . 19 . 16 5 . 11 32 68 32 14 26 69 10 Intercepted 11 | . . . . . . . . . . . . . . . . . . . . . . . . . . . . . . . . . . 11 . Deflected 33 | . . . . . . . . . . . . . . . . . . . . . . . . . . . . . . 29 3 . . 1 . Hits 1119 | . 34 53 37 44 17 24 . 2 40 1 . 11 78 17 . 2 2 30 . 31 122 . 23 . 24 5 . 8 39 352 34 30 3 41 15 Melee 66 | . . . . . . . . . . . . . . . . 2 . . . . . . 1 . . . . . . 63 . . . . . Projectile 1053 | . 34 53 37 44 17 24 . 2 40 1 . 11 78 17 . . 2 30 . 31 122 . 22 . 24 5 . 8 39 289 34 30 3 41 15 AOE 10 | . . 2 . . . . . . . . . . . . . 1 . . . . 2 . . . . . . . . 4 . . . 1 . Critical Strikes 100 | . 1 3 4 3 . . . . . . . 1 . 1 . 2 . 1 . 1 6 . 5 . 3 3 . 1 8 46 1 5 1 4 . Actively Blocked 42 | . . . . . . . . . . . . . . . . 2 . . . . . . . . . . . . . 35 . 5 . . . Damage Taken 22372 | . 386 1170 572 656 344 173 . 55 474 14 . 419 1153 197 . 91 35 392 . 648 2462 . 407 . 256 131 14 105 493 9206 466 394 161 1152 346 Core 2042 | . 73 144 59 42 103 28 . . 42 . . . 63 23 . 17 15 45 . 122 261 . 57 . 20 17 . . 79 753 20 13 24 22 . Absorbed by Shields 287 | . . . . . . . . . . 14 . . . . . . . 49 . . . . . . . 17 13 51 . . . . . 19 124 Reduced by Siege Mode 258 | . . . . . . . . . . . . 26 8 . . . . . . . 176 . . . . . . . . . . . . . 48 Ignored by Resistances 2916 | . . . 28 83 2 . . . . . . . . 142 . . . 91 . 130 229 . 157 . 135 . . 51 409 971 173 187 18 110 . Regen/Repaired (Parts) 9289 | . . . . 145 66 72 . . 95 . 364 . 156 1048 . 120 . . 105 . 1378 . 161 366 . 329 . 22 185 2498 784 108 . 1287 . Core Remaining (%) 66 | 100 . 13 . . 62 . . . . . . . 84 . . . . . . 77 . . . . . . 69 . . 26 . 97 . . . Volleys Fired 1817 | 1 40 133 44 78 25 15 2 4 24 13 4 33 123 72 36 12 5 37 . 24 129 . 73 24 56 24 37 55 54 272 33 59 50 215 11 Largest 3 | 1 2 2 3 3 3 2 1 1 1 1 1 1 1 1 1 1 1 1 . 1 2 . 2 1 1 1 1 1 1 2 1 1 1 1 1 Hottest 438 | 20 120 120 140 75 75 163 163 163 163 163 163 163 163 163 92 92 92 92 . 92 114 . 110 88 88 283 138 138 138 138 179 102 100 438 254 Shots Fired 2238 | 1 78 220 123 232 64 21 2 4 24 13 4 33 123 72 36 12 5 37 . 24 134 . 82 24 56 24 37 55 54 275 33 59 50 216 11 Gun 679 | 1 36 72 120 232 64 12 . . . . . . . . . . . . . . . . . . . . . . . 39 . . . 103 . Cannon 1546 | . 42 148 2 . . 9 2 4 24 13 4 33 123 72 36 12 5 37 . 24 131 . 82 24 56 24 37 55 54 235 33 59 44 111 11 Launcher 2 | . . . 1 . . . . . . . . . . . . . . . . . . . . . . . . . . 1 . . . . . Special 11 | . . . . . . . . . . . . . . . . . . . . . 3 . . . . . . . . . . . 6 2 . Kinetic 1146 | 1 34 118 121 232 55 10 . . . . . . . 2 . . . . . . 14 . 73 24 56 23 37 55 44 28 4 29 44 142 . Thermal 897 | . 44 102 2 . 9 11 . . . . . 33 123 70 36 12 5 37 . 24 114 . . . . 1 . . 10 142 29 30 . 52 11 Explosive 1 | . . . . . . . . . . . . . . . . . . . . . . . . . . . . . . 1 . . . . . Electromagnetic 80 | . . . . . . . 2 4 24 13 4 . . . . . . . . . 3 . 9 . . . . . . 1 . . . 20 . Entropic 103 | . . . . . . . . . . . . . . . . . . . . . . . . . . . . . . 103 . . . . . Robot Hit Streak 33 | 1 5 25 13 15 19 2 1 3 7 3 1 2 10 9 13 3 5 9 . 6 13 . 13 7 5 7 13 14 11 18 14 7 17 33 7 Robot Miss Streak 12 | . 4 2 3 7 2 3 1 1 2 2 1 5 3 5 2 2 . 2 . 3 7 . 6 2 6 1 2 1 2 7 1 12 8 5 1 Penetration Max 3 | . . . . . . . . . . . . . . . . . . . . . . . . . . . 1 2 1 1 . 2 2 3 . Secondary Targets 6 | . . . 3 3 . . . . . . . . . . . . . . . . . . . . . . . . . . . . . . . Max Gunslinging Chain 1 | . . . 1 1 . . . . . . . . . . . . . . . . . . . . . . . . . . . . . . . Capacitor 4 | . . . . . . . . . . . . . . . . . . . . . . . . . . . . . . . . . . 4 . Shots Hit Robots 1348 | 1 41 123 71 143 50 6 1 3 18 7 2 13 63 38 28 6 2 23 . 14 78 . 57 16 29 19 19 35 32 147 32 27 35 161 8 Core Hits 811 | 1 16 29 28 49 14 4 1 . 11 6 3 2 32 17 6 6 . 10 . 6 64 . 46 6 14 8 9 17 9 86 15 32 50 210 4 Critical Kills 64 | . . 2 1 1 . . . . . . . . . . . . . . . . 2 . . 2 2 . . 1 . . . 12 7 34 . Critical Parts Destroyed 85 | . . . . 1 . . . . . . . . . . . . . . . . . . 1 3 2 2 1 . . . . 12 15 48 . Critical Strikes 162 | . . 2 1 2 . . . . . . . . . . . . . . . . 2 . 1 5 4 2 1 2 . 5 . 24 24 87 . Meltdown 1 | . . 1 . . . . . . . . . . . . . . . . . . . . . . . . . . . . . . . . . Destroy 156 | . . 1 1 2 . . . . . . . . . . . . . . . . 2 . 1 5 4 2 1 2 . . . 24 24 87 . Sunder 5 | . . . . . . . . . . . . . . . . . . . . . . . . . . . . . . 5 . . . . . Melee Attacks 41 | . . . 1 3 1 7 . . . . . . . . . . . . . . . . . . . . . . . 12 8 9 . . . Impact 5 | . . . 1 3 1 . . . . . . . . . . . . . . . . . . . . . . . . . . . . . . Slashing 36 | . . . . . . 7 . . . . . . . . . . . . . . . . . . . . . . . 12 8 9 . . . Piercing . | . . . . . . . . . . . . . . . . . . . . . . . . . . . . . . . . . . . . Sneak Attacks 4 | . . . . . . . . . . . . . . . . . . . . . . . . . . . . . . . 2 2 . . . Combat Hostiles . | . . . . . . . . . . . . . . . . . . . . . . . . . . . . . . . . . . . . Follow-up Attacks . | . . . . . . . . . . . . . . . . . . . . . . . . . . . . . . . . . . . . Damage Inflicted 106085 | 15 689 2582 1489 2510 849 152 327 628 3465 1627 483 1572 7404 5328 4953 946 274 3311 . 1863 6990 . 3558 1890 3372 2901 2719 5301 4448 17111 2165 1147 2022 9711 2283 Guns 9489 | 15 240 796 1355 2510 849 97 . . . . . . . . . . . . . . . . . . . . . . . 706 . . . 2921 . Cannons 93179 | . 449 1786 27 . . 55 327 628 3358 1627 483 1572 7404 5136 4953 930 274 3311 . 1863 6451 . 3132 1890 3372 2901 2719 5217 4448 16097 1739 698 1490 6559 2283 Explosions 2337 | . . . 107 . . . . . . . . . . 146 . . . . . . 539 . 426 . . . . 48 . 308 . . 532 231 . Melee 875 | . . . . . . . . . . . . . . . . . . . . . . . . . . . . . . . 426 449 . . . Ramming 205 | . . . . . . . . . 107 . . . . 46 . 16 . . . . . . . . . . . 36 . . . . . . . Kinetic 36229 | 15 240 1154 1462 2510 706 34 . . . . . . . 251 . . . . . . 361 . 2546 1890 3372 2757 2719 5217 4156 366 139 620 1490 4224 . Thermal 51225 | . 449 1428 27 . 143 118 . . . . . 1572 7404 4885 4953 930 274 3311 . 1863 6114 . 318 . . 144 . 48 292 7114 1600 78 390 5487 2283 Explosive 841 | . . . . . . . . . . . . . . . . . . . . . 471 . 21 . . . . . . 207 . . 142 . . Electromagnetic 7286 | . . . . . . . 327 628 3358 1627 483 . . 146 . . . . . . 44 . 673 . . . . . . . . . . . . Impact . | . . . . . . . . . . . . . . . . . . . . . . . . . . . . . . . . . . . . Slashing 875 | . . . . . . . . . . . . . . . . . . . . . . . . . . . . . . . 426 449 . . . Piercing . | . . . . . . . . . . . . . . . . . . . . . . . . . . . . . . . . . . . . Entropic 9424 | . . . . . . . . . . . . . . . . . . . . . . . . . . . . . . 9424 . . . . . Highest Corruption 34 | . . . . . . . . . . . . 2 2 1 3 3 . 1 1 6 16 17 17 . 2 2 1 . . 34 . . . 1 . Average Corruption 4 | . . . . . . . . . . . . 1 2 1 1 2 . 1 1 3 15 16 8 . 1 1 1 . . 8 . . . 1 . Corruption Purged 71 | . . . . . . . . . . . . . . 1 . 3 . . . . . . 17 . . . . . . 49 . . . 1 . Corruption Blocked 13 | . . . . . . . . . . . . . . . . . . . . . . . . . . . . . 2 . . . . 11 . Effects 131 | . . . . . . . . . . . . 2 12 1 2 . . 3 1 4 50 6 6 . 4 6 9 . . 21 . . . 4 . Message Errors 24 | . . . . . . . . . . . . . 1 . 1 . . . . 1 11 1 2 . . 2 2 . . 3 . . . . . Matter Fused 28 | . . . . . . . . . . . . . 4 1 1 . . 1 . . 8 1 2 . 1 1 2 . . 5 . . . 1 . Heat Flow Errors 13 | . . . . . . . . . . . . . 1 . . . . . . 1 4 . 1 . . . 3 . . 2 . . . 1 . Energy Discharges 21 | . . . . . . . . . . . . 1 3 . . . . 1 . . 7 1 . . 3 2 1 . . 2 . . . . . Parts Rejected 2 | . . . . . . . . . . . . . . . . . . . . . 1 . . . . . . . . 1 . . . . . Parts Fused 3 | . . . . . . . . . . . . . 1 . . . . . . . 1 . . . . . 1 . . . . . . . . Data Loss (minor) 16 | . . . . . . . . . . . . . 1 . . . . 1 1 2 7 . . . . . . . . 4 . . . . . Data Loss (major) 6 | . . . . . . . . . . . . 1 1 . . . . . . . 3 . . . . . . . . . . . . 1 . Misfires 1 | . . . . . . . . . . . . . . . . . . . . . . . . . . . . . . . . . . 1 . Alerts 3 | . . . . . . . . . . . . . . . . . . . . . 1 . 1 . . 1 . . . . . . . . . Misdirections 6 | . . . . . . . . . . . . . . . . . . . . . 3 3 . . . . . . . . . . . . . Weapon Failures 8 | . . . . . . . . . . . . . . . . . . . . . 4 . . . . . . . . 4 . . . . . Overload Shots . | . . . . . . . . . . . . . . . . . . . . . . . . . . . . . . . . . . . . Overflow Damage 14534 | . . . . . . . . 148 962 29 . 387 794 1784 196 174 168 642 . 504 725 . 38 285 472 395 426 931 1535 1692 86 162 283 1056 660 Projectiles 14283 | . . . . . . . . 148 962 29 . 387 794 1768 196 174 168 642 . 504 725 . 38 285 472 395 426 931 1535 1646 86 48 208 1056 660 Explosions 121 | . . . . . . . . . . . . . . . . . . . . . . . . . . . . . . 46 . . 75 . . Melee 130 | . . . . . . . . . . . . . . 16 . . . . . . . . . . . . . . . . . 114 . . . Knockbacks 128 | . . 7 . . . . . . 1 . . . . 1 . . . . . . 1 . 25 3 10 6 9 12 16 . . 11 8 18 . Impact 3 | . . . . . . . . . 1 . . . . 1 . . . . . . . . . . . . . 1 . . . . . . . Kinetic 118 | . . 6 . . . . . . . . . . . . . . . . . . 1 . 24 3 10 5 8 11 13 . . 11 8 18 . Secondary 7 | . . 1 . . . . . . . . . . . . . . . . . . . . 1 . . 1 1 . 3 . . . . . . Self-Inflicted Damage 439 | . . . . 43 . . . . . . . . . . . . . . . . 250 . 66 . . . . . . . . . 80 . . Shots 7 | . . . . 1 . . . . . . . . . . . . . . . . 4 . 1 . . . . . . . . . 1 . . Rammed . | . . . . . . . . . . . . . . . . . . . . . . . . . . . . . . . . . . . . Targets Rammed 7 | . . . . . . . . . 4 . . . . 1 . 1 . . . . . . . . . . . 1 . . . . . . . Kicked 7 | . . . . . . . . . 4 . . . . 1 . 1 . . . . . . . . . . . 1 . . . . . . . Crushed . | . . . . . . . . . . . . . . . . . . . . . . . . . . . . . . . . . . . . Highest Temperature 480 | . 324 . 480 126 91 413 140 245 301 298 158 266 385 301 58 172 148 400 . 366 321 . 324 190 184 270 323 284 320 243 362 314 49 223 167 Average Temperature 81 | . 109 . 163 37 30 130 73 115 95 144 86 113 134 60 33 61 56 116 . 128 91 . 78 66 33 90 123 86 66 60 63 43 21 69 115 Received Heat Transfer 3221 | . 153 261 369 396 27 42 . 9 144 . . 54 213 72 . . 9 33 . 9 430 . 115 . 36 . . 15 30 630 72 9 45 48 . Thermoelectric Energy+ 4976 | . . . . . . . . . . . . . . . . . . . . . . . . . . . . . . . . . . 4670 306 Effects 23 | . 1 . 4 . . 1 . . . . . . 4 . . . . . . . 2 . 6 . . . . . . 1 . . . 4 . Shutdowns 3 | . . . 2 . . . . . . . . . 1 . . . . . . . . . . . . . . . . . . . . . . Energy Bleed 6 | . 1 . 1 . . . . . . . . . 1 . . . . . . . 1 . . . . . . . . 1 . . . 1 . Interference 13 | . . . 1 . . . . . . . . . 2 . . . . . . . 1 . 6 . . . . . . . . . . 3 . Short Circuit 1 | . . . . . . 1 . . . . . . . . . . . . . . . . . . . . . . . . . . . . . Siege Activations 7 | . . . . . . . . . . . . 1 3 . . . . . . . 1 . . . . . . . . . . . . 1 1 Total Turns 108 | . . . . . . . . . . . . 23 23 . . . . . . . 57 . . . . . . . . . . . . 1 4 Longest Duration 57 | . . . . . . . . . . . . 23 12 . . . . . . . 57 . . . . . . . . . . . . 1 4 Martial Activations 1 | . . . . . . . . . . . . . . . . . . . . . . . . . . . . . 1 . . . . . . Total Turns 1 | . . . . . . . . . . . . . . . . . . . . . . . . . . . . . 1 . . . . . . Longest Duration 1 | . . . . . . . . . . . . . . . . . . . . . . . . . . . . . 1 . . . . . . Shielding Activations 5 | . . . . . . . . . 2 . . . . . . . . . . . . . . . . . . . . 3 . . . . . Total Turns 64 | . . . . . . . . . 8 . . . . . . . . . . . . . . . . . . . . 56 . . . . . Longest Duration 21 | . . . . . . . . . 5 . . . . . . . . . . . . . . . . . . . . 21 . . . . . Robots Disrupted 9 | . . . . . . . . . . . . . . . . . . . . . 3 . 4 . . . . . . . . . 2 . . Combat Hostiles 6 | . . . . . . . . . . . . . . . . . . . . . 1 . 3 . . . . . . . . . 2 . . Robots Corrupted 12 | . . . . . . . . 2 6 2 . . . 1 . . . . . . . . 1 . . . . . . . . . . . . Combat Hostiles 9 | . . . . . . . . . 6 2 . . . . . . . . . . . . 1 . . . . . . . . . . . . Parts Fried 68 | . . . . . . . . 6 36 14 5 1 . 4 . . . . . . . . 1 . . . . 1 . . . . . . . Impact Corruptions 4 | . . . . . . . . . . . . . . 1 . . . . . . . . . . . . 1 1 1 . . . . . . Robots Melted 1 | . . 1 . . . . . . . . . . . . . . . . . . . . . . . . . . . . . . . . . Combat Hostiles 1 | . . 1 . . . . . . . . . . . . . . . . . . . . . . . . . . . . . . . . . Parts Melted 21 | . 1 1 . . 3 . . . . . . . 3 3 . . . 4 . 1 4 . . . . . . . . . 1 . . . . Heat Transferred 16009 | . 925 2287 37 . 237 148 . . . . . 536 2497 1696 1700 350 100 1250 . 700 1650 . 200 . . . . 50 . 50 1222 50 250 74 . Parts Sabotaged . | . . . . . . . . . . . . . . . . . . . . . . . . . . . . . . . . . . . . Parts Stolen . | . . . . . . . . . . . . . . . . . . . . . . . . . . . . . . . . . . . . Parts Stripped . | . . . . . . . . . . . . . . . . . . . . . . . . . . . . . . . . . . . . Power Chain Reactions 11 | . . . . . . . . . . . . . . . . . . . . . 1 . 3 . . . . 1 . 1 . . 2 3 . Alert | -11 -10 -10 -8 -8 -8 -6 -6 -6 -6 -6 -6 -6 -6 -5 -5 -5 -5 -5 -5 -4 -4 -4 -4 -4 -4 -4 -3 -3 -3 -3 -2 -2 -1 -1 -1 ------- Run | Yrd Mat Sub Mat Sto Rec Fac Was Fac Ext Cet Arc Hub Gar Fac Was Fac Upp Upp Zhi Pro Fac Was Fac Upp Upp War Pro Res Qua Frg Res Tes Acc Com Ac0 Maximum Alert Level 5 | . . . 1 1 . 1 . 2 3 3 2 2 5 4 2 1 . . . . 3 1 2 . . . . 1 1 4 3 2 1 4 . Low Security (%) 36 | 100 100 . 88 67 100 97 100 37 . . . 27 . . . . . . . . 2 . 45 . . . . 84 78 25 . 84 65 . . Level 1 10 | . . . 11 32 . 2 . 29 9 . 89 21 . . 18 100 . . . . 9 100 54 . . . . 15 21 3 . 14 34 2 . Level 2 17 | . . . . . . . . 32 55 99 10 51 12 . 81 . . . . . 72 . . . . . . . . 52 5 1 . 6 . Level 3 25 | . . . . . . . . . 35 . . . 16 . . . . . . . 15 . . . . . . . . 7 94 . . 82 . Level 4 7 | . . . . . . . . . . . . . 26 100 . . . . . . . . . . . . . . . 10 . . . 8 . Level 5 1 | . . . . . . . . . . . . . 42 . . . . . . . . . . . . . . . . . . . . . . High Security . | . . . . . . . . . . . . . . . . . . . . . . . . . . . . . . . . . . . . Max Security . | . . . . . . . . . . . . . . . . . . . . . . . . . . . . . . . . . . . . Peak Influence 2297 | 5 79 . 228 346 147 200 . 548 907 698 418 570 2297 1400 470 305 . . . . 811 281 415 . . . . 298 250 1418 987 403 288 766 . Initial 1205 | . . . . 82 127 200 . . 248 466 243 114 392 1205 470 268 . . . . 65 276 175 . . . . . 32 140 796 383 116 163 . Average 414 | . 22 . 63 134 10 70 . 267 627 611 359 350 1445 1281 428 266 . . . . 559 270 221 . . . . 91 85 530 819 154 191 560 . Influence Increases 18441 | 5 257 20 414 652 127 294 . 828 984 352 205 756 2045 620 4 211 55 551 . 242 1630 15 848 100 215 316 170 646 642 2204 388 677 436 1511 21 Destroy 0b10 Robot/C 8460 | . 160 20 240 380 20 40 . 320 480 160 80 220 880 240 . 80 20 340 . 220 580 . 260 80 180 240 120 240 320 1220 160 160 160 840 . Destroy 0b10 Robot/NC 700 | 5 20 . 20 50 . . . 35 10 10 . 25 10 80 . 15 5 . . . 55 . 60 . 5 5 5 45 10 40 20 40 25 105 . Destroy Leader 1262 | . 36 . 62 118 . 20 . 58 42 . . 32 30 58 . 22 . 30 . 20 124 . 64 20 30 . 10 54 54 116 28 38 38 158 . Allied During Kill 1357 | . . . . . . . . 265 385 170 80 275 100 . . . . 16 . 2 . . 2 . . 26 20 12 . . . . 4 . . Trap Triggered on 0b10 70 | . . . 10 . . . . . . . . . . . . . . . . . 40 . . . . . . . . 20 . . . . . Successful Hack 892 | . 24 . 22 12 15 20 . 44 44 . . 36 12 103 . 69 . . . . 127 . 71 . . . . 7 90 4 . 75 53 64 . Select Force Hacks 190 | . . . . . 90 . . . . . . 100 . . . . . . . . . . . . . . . . . . . . . . . Disable Machine 1440 | . 15 . 15 45 . . . 60 . . 45 30 75 75 . . . . . . 285 . 135 . . . . 30 60 270 15 165 30 75 15 Anti-Garrison Action 950 | . . . . . . . . . . . . . 600 . . . . . . . . . . . . . . 150 . 200 . . . . . Destroy Structure 1780 | . 2 . 15 17 2 14 . 16 23 12 . 38 203 64 4 10 . . . . 344 . 226 . . . . 78 48 214 15 139 81 209 6 Advance Influence 200 | . . . . . . 200 . . . . . . . . . . . . . . . . . . . . . . . . . . . . . Partial Spotted 285 | . . . . . . . . 30 . . . . 45 . . . . . . . 15 15 30 . . . . . . 90 . 15 . 45 . Lose Combat Pursuer 855 | . . . 30 30 . . . . . . . . 90 . . 15 30 165 . . 60 . . . . 45 15 30 60 30 150 45 45 15 . Influence Decreases 18420 | 5 257 20 218 520 455 294 . 320 658 578 485 524 308 1574 963 306 344 314 237 138 945 553 684 440 220 294 262 588 450 1037 1123 1164 375 645 1122 Entered New Map 7425 | . . . . 114 201 . . . 260 368 365 214 168 1092 873 116 108 . 237 . 39 513 76 154 15 70 92 . 26 110 621 299 79 93 1122 Time Decay 8408 | 5 247 20 207 386 254 294 . 140 398 190 100 120 . 422 90 180 236 294 . 118 546 40 428 286 205 204 150 352 314 695 482 417 246 342 . Lost Part 201 | . 10 . 11 20 . . . . . . . 10 . . . . . . . . 40 . 10 . . . . . . 90 . . 10 . . Lost Ally 1040 | . . . . . . . . 180 . 20 20 180 140 60 . 10 . 20 . 20 20 . 20 . . 20 20 40 . . 20 . 40 210 . Purge Threat 1346 | . . . . . . . . . . . . . . . . . . . . . 300 . 150 . . . . 196 110 142 . 448 . . . Squads Dispatched 92 | . 1 . 1 2 . 2 . 2 3 . . 4 . 10 . 2 . 1 . . 13 . 8 . 1 . . 7 6 11 1 7 5 5 . Investigation 16 | . 1 . . 1 . 1 . 1 1 . . 2 . . . . . . . . 1 . 2 . . . . 3 1 1 . 1 . . . Extermination 28 | . . . . . . 1 . 1 . . . . . 4 . . . . . . 2 . 2 . . . . . 4 6 . 3 2 3 . Reinforcement 31 | . . . 1 1 . . . . 2 . . 2 . 4 . 2 . . . . 4 . 4 . 1 . . 4 1 . 1 3 . 1 . Assault 11 | . . . . . . . . . . . . . . 2 . . . 1 . . 3 . . . . . . . . 4 . . . 1 . Garrison 6 | . . . . . . . . . . . . . . . . . . . . . 3 . . . . . . . . . . . 3 . . Intercept . | . . . . . . . . . . . . . . . . . . . . . . . . . . . . . . . . . . . . Searches Triggered . | . . . . . . . . . . . . . . . . . . . . . . . . . . . . . . . . . . . . Unchained Authorized 4 | . . . . . . . . . . . . . . . . . . . . . . . 1 1 1 . . . . . . 1 . . . Construction Impeded 5 | . . . 1 . . . . . 1 . . . . 1 . . . . . . 2 . . . . . . . . . . . . . . Haulers Reinforced 4 | . . . . . . . . . . . . . . 2 . . . . . . 1 . 1 . . . . . . . . . . . . Active Scanning Responses . | . . . . . . . . . . . . . . . . . . . . . . . . . . . . . . . . . . . . Cargo Convoy Interrupts . | . . . . . . . . . . . . . . . . . . . . . . . . . . . . . . . . . . . . Stealth | -11 -10 -10 -8 -8 -8 -6 -6 -6 -6 -6 -6 -6 -6 -5 -5 -5 -5 -5 -5 -4 -4 -4 -4 -4 -4 -4 -3 -3 -3 -3 -2 -2 -1 -1 -1 --------- Run | Yrd Mat Sub Mat Sto Rec Fac Was Fac Ext Cet Arc Hub Gar Fac Was Fac Upp Upp Zhi Pro Fac Was Fac Upp Upp War Pro Res Qua Frg Res Tes Acc Com Ac0 Distress Signals 55 | . 1 . . 1 1 . . 1 2 2 1 2 1 . . . . . . . . . . . . 2 . 5 3 . 11 1 1 20 . Communications Jammed 29 | . . . . . . . . . . . . . . 3 . . . . . . 4 . . . . . . 1 . 21 . . . . . Distress Signals 29 | . . . . . . . . . . . . . . 3 . . . . . . 4 . . . . . . 1 . 21 . . . . . Times Spotted 659 | . 18 14 14 25 7 2 . 7 23 8 2 27 45 17 6 5 3 25 . 11 37 6 28 6 14 53 9 15 26 79 36 16 20 50 5 Peak Tracking Total 13 | . 4 2 3 6 1 1 . 3 10 5 1 9 6 2 3 3 3 7 . 5 8 6 8 3 4 13 6 5 5 9 9 4 7 4 4 Tactical Retreats 32 | . 1 . 1 2 . . . . . . . . 3 . . 1 2 3 . . 2 . . . . 2 2 1 2 2 4 1 1 2 . Traps | -11 -10 -10 -8 -8 -8 -6 -6 -6 -6 -6 -6 -6 -6 -5 -5 -5 -5 -5 -5 -4 -4 -4 -4 -4 -4 -4 -3 -3 -3 -3 -2 -2 -1 -1 -1 ------- Run | Yrd Mat Sub Mat Sto Rec Fac Was Fac Ext Cet Arc Hub Gar Fac Was Fac Upp Upp Zhi Pro Fac Was Fac Upp Upp War Pro Res Qua Frg Res Tes Acc Com Ac0 Traps Triggered 36 | . . 1 . 5 . 1 . . 1 . . . 4 4 . 1 . . . . 6 . . . . . . . 2 10 . 1 . . . Indirectly 1 | . . . . . . . . . . . . . . 1 . . . . . . . . . . . . . . . . . . . . . Trap Hack Attempts . | . . . . . . . . . . . . . . . . . . . . . . . . . . . . . . . . . . . . Triggered . | . . . . . . . . . . . . . . . . . . . . . . . . . . . . . . . . . . . . Disarmed 4 | . . . . . . . . . 4 . . . . . . . . . . . . . . . . . . . . . . . . . . Reprogrammed 6 | . . . . . . . . . . . . . . . . . . . . . 6 . . . . . . . . . . . . . . Reused 8 | . . . 1 . . . . . . . . . . . . . . 1 . . 4 . . . . . . . . 2 . . . . . Traps Extracted . | . . . . . . . . . . . . . . . . . . . . . . . . . . . . . . . . . . . . Installed 12 | . . 3 1 . . . . . . . . . . . . . . 4 . . . . . . . . . . . 4 . . . . . Triggered 8 | . . . 1 . . . . . . . . . . . . . . 1 . . 4 . . . . . . . . 2 . . . . . Most Traps Carried 6 | . . 1 1 . . . . . . . . . . . . . 6 4 . . . . . . . . 4 4 4 4 . . . . . Machines | -11 -10 -10 -8 -8 -8 -6 -6 -6 -6 -6 -6 -6 -6 -5 -5 -5 -5 -5 -5 -4 -4 -4 -4 -4 -4 -4 -3 -3 -3 -3 -2 -2 -1 -1 -1 ---------- Run | Yrd Mat Sub Mat Sto Rec Fac Was Fac Ext Cet Arc Hub Gar Fac Was Fac Upp Upp Zhi Pro Fac Was Fac Upp Upp War Pro Res Qua Frg Res Tes Acc Com Ac0 Machines Disabled 115 | . 1 1 1 3 . . . 4 1 . 3 2 17 5 . . . . . . 19 . 9 . . 1 . 3 4 21 1 11 2 5 1 Max in Single Turn 4 | . 1 1 1 1 . . . . . . 1 1 2 1 . . . . . . 4 . 3 . . 1 . 1 1 3 1 1 1 1 1 Garrison Access 7 | . . . . . . . . . . . . . . . . . . . . . . . 1 . . . . 1 . 1 2 1 1 . . Garrison Relay 9 | . . . . . . . . . . . . . 9 . . . . . . . . . . . . . . . . . . . . . . Phase Generator 2 | . . . . . . . . . . . . . 1 . . . . . . . . . . . . . . . . . . . . 1 . Network Hub 2 | . . . . . . . . . . . . 2 . . . . . . . . . . . . . . . . . . . . . . . Machines Repaired . | . . . . . . . . . . . . . . . . . . . . . . . . . . . . . . . . . . . . Machines Dismantled . | . . . . . . . . . . . . . . . . . . . . . . . . . . . . . . . . . . . . Machines Sabotaged 2 | . . . . . . . . . . . . 2 . . . . . . . . . . . . . . . . . . . . . . . Overloaded Fab Kills . | . . . . . . . . . . . . . . . . . . . . . . . . . . . . . . . . . . . . Hacking | -11 -10 -10 -8 -8 -8 -6 -6 -6 -6 -6 -6 -6 -6 -5 -5 -5 -5 -5 -5 -4 -4 -4 -4 -4 -4 -4 -3 -3 -3 -3 -2 -2 -1 -1 -1 --------- Run | Yrd Mat Sub Mat Sto Rec Fac Was Fac Ext Cet Arc Hub Gar Fac Was Fac Upp Upp Zhi Pro Fac Was Fac Upp Upp War Pro Res Qua Frg Res Tes Acc Com Ac0 Machines Accessed 167 | . 6 3 4 7 9 5 . 9 11 . . 6 2 14 . 8 4 1 4 . 7 . 12 1 2 2 . 6 14 5 2 9 8 6 . Terminals 96 | . 6 . 1 5 5 . . 5 10 . . 5 2 2 . 5 1 . . . 4 . 7 . . . . 4 11 4 1 7 6 5 . Fabricators 10 | . . . . . . . . 1 . . . . . 2 . 1 . . . . 2 . 1 . . . . 1 . . . 1 1 . . Repair Stations 12 | . . . 1 2 . 1 . . 1 . . . . 4 . 1 . . . . . . 1 . . . . . 1 . . . . . . Recycling Units 16 | . . . 1 . 3 3 . 2 . . . . . 3 . 1 . . . . . . 1 . . . . 1 . . . . . 1 . Scanalyzers 7 | . . . 1 . . 1 . 1 . . . . . 2 . . . . . . 1 . . . . . . . 1 . . . . . . Garrison Access 9 | . . . . . . . . . . . . 1 . 1 . . . . . . . . 2 . . . . . 1 1 1 1 1 . . Total Hacks 610 | . 24 3 11 15 24 8 . 25 28 . . 11 4 51 . 37 6 1 17 . 75 . 71 1 4 3 . 27 54 22 5 50 20 13 . Successful 308 | . 16 3 6 10 16 5 . 11 16 . . 6 1 18 . 15 6 1 17 . 48 . 35 1 4 3 . 8 18 11 1 18 9 5 . Failed 301 | . 8 . 4 5 8 3 . 14 12 . . 5 3 33 . 22 . . . . 27 . 36 . . . . 19 36 11 4 32 11 8 . Catastrophic 82 | . . . 1 1 1 . . 3 2 . . 1 2 11 . 5 . . . . 8 . 10 . . . . 5 11 5 1 9 3 3 . Database Lockouts 1 | . . . 1 . . . . . . . . . . . . . . . . . . . . . . . . . . . . . . . . Manual 215 | . 18 . 2 8 18 1 . 3 10 1 . 4 1 9 . 15 . . . . 29 . 45 . . . . 9 14 9 . 11 7 1 . Terminals 391 | . 24 . 1 11 14 . . 15 25 . . 8 4 11 . 25 1 . . . 43 . 50 . . . . 21 49 20 2 43 12 12 . Fabricators 46 | . . . . . . . . 2 . . . . . 5 . 7 . . . . 10 . 9 . . . . 4 . . . 4 5 . . Repair Stations 29 | . . . 3 4 . 1 . . 3 . . . . 13 . 3 . . . . . . 1 . . . . . 1 . . . . . . Recycling Units 32 | . . . 2 . 8 4 . 4 . . . . . 6 . 2 . . . . . . 3 . . . . 2 . . . . . 1 . Scanalyzers 48 | . . . 5 . . 3 . 4 . . . . . 11 . . . . . . 22 . . . . . . . 3 . . . . . . Garrison Access 28 | . . . . . . . . . . . . 3 . 5 . . . . . . . . 8 . . . . . 1 2 3 3 3 . . Terminal Hacks 156 | . 8 3 1 5 3 . . 4 10 . . 2 1 3 . 5 6 1 17 . 17 . 14 1 4 3 . 5 11 10 . 15 3 4 . Record 22 | . . . . . . . . . . . . . . . . . 4 . 5 . . . . . 3 2 . . 3 5 . . . . . Part Schematic 15 | . . . . . 1 . . . 3 . . . . . . 2 . . 4 . 5 . . . . . . . . . . . . . . Robot Schematic 1 | . 1 . . . . . . . . . . . . . . . . . . . . . . . . . . . . . . . . . . Robot Analysis 12 | . 4 . . 1 . . . . 1 . . . . 1 . . . . 4 . . . . . . . . . . . . 1 . . . Prototype ID Bank 5 | . . . . . . . . . . . . . . . . . . . 4 . . . . . . . . . . . . 1 . . . Open Door 15 | . . 1 . 2 . . . . 2 . . . . . . . 2 1 . . . . . 1 1 1 . . . . . . 3 1 . Level Access Points 1 | . . . . . . . . . . . . . . . . . . . . . . . . . . . . . . . . . . 1 . Branch Access Points 8 | . . . 1 1 . . . 1 . . . . . 1 . 1 . . . . 1 . 1 . . . . 1 . . . . . . . Emergency Access Points 4 | . . . . . . . . . . . . . 1 . . . . . . . . . 2 . . . . . . . . . . 1 . Terminal Index 2 | . . . . . . . . . . . . . . . . . . . . . . . 1 . . . . . . . . 1 . . . Fabricator Index 1 | . . . . . . . . . . . . . . . . . . . . . . . 1 . . . . . . . . . . . . Garrison Index 1 | . . . . . . . . . . . . 1 . . . . . . . . . . . . . . . . . . . . . . . Alert Level 11 | . . . . . . . . 1 . . . . . . . 1 . . . . 1 . 1 . . . . 1 3 1 . 2 . . . Unreport Threat 13 | . . . . . . . . . . . . . . . . . . . . . 2 . 1 . . . . 2 3 2 . 3 . . . Locate Traps 11 | . 1 . . 1 . . . . 1 . . . . 1 . 1 . . . . 2 . 1 . . . . . 1 . . 2 . . . Disarm Traps 1 | . . . . . . . . . 1 . . . . . . . . . . . . . . . . . . . . . . . . . . Reprogram Traps 1 | . . . . . . . . . . . . . . . . . . . . . 1 . . . . . . . . . . . . . . Dispatch Records 1 | . . . . . . . . . . . . . . . . . . . . . . . 1 . . . . . . . . . . . . Patrol Status 1 | . 1 . . . . . . . . . . . . . . . . . . . . . . . . . . . . . . . . . . Recall Investigation 1 | . . . . . . . . . . . . . . . . . . . . . . . 1 . . . . . . . . . . . . Recall Extermination 3 | . . . . . . . . 1 . . . . . . . . . . . . 1 . . . . . . . . . . 1 . . . Recall Reinforcements 4 | . . . . . . . . . 1 . . . . . . . . . . . 1 . 1 . . . . . . . . 1 . . . Hauler Manifests 4 | . . . . . . . . . 1 . . . . . . . . . . . 2 . . . . . . . . . . 1 . . . Registered Components 7 | . 1 . . . . . . 1 . . . . . . . . . . . . 1 . 1 . . . . 1 . . . 1 . 1 . Zone Layout 5 | . . . . . . . . . . . . 1 . . . . . . . . . . 2 . . . . . 1 1 . . . . . Proto ID Catalog 2 | . . 1 . . . . . . . . . . . . . . . . . . . . . . . . . . . 1 . . . . . Protovariant Controls 1 | . . . . . . . . . . . . . . . . . . . . . . . . . . . . . . . . 1 . . . Release Object 3 | . . 1 . . 2 . . . . . . . . . . . . . . . . . . . . . . . . . . . . . . Fabricator Hacks 15 | . . . . . . . . 1 . . . . . 3 . 2 . . . . 4 . 3 . . . . 1 . . . . 1 . . Network Status 7 | . . . . . . . . 1 . . . . . 2 . 1 . . . . 1 . 1 . . . . . . . . . 1 . . Load Schematic 3 | . . . . . . . . . . . . . . . . . . . . . 1 . 1 . . . . 1 . . . . . . . Build 5 | . . . . . . . . . . . . . . 1 . 1 . . . . 2 . 1 . . . . . . . . . . . . Repair Station Hacks 15 | . . . 1 2 . . . . 2 . . . . 7 . 2 . . . . . . 1 . . . . . . . . . . . . Scan Component 10 | . . . 1 2 . . . . 1 . . . . 4 . 1 . . . . . . 1 . . . . . . . . . . . . Repair 5 | . . . . . . . . . 1 . . . . 3 . 1 . . . . . . . . . . . . . . . . . . . Recycling Unit Hacks 13 | . . . 1 . 3 2 . 1 . . . . . 1 . 2 . . . . . . 1 . . . . 1 . . . . . 1 . Retrieve Components 13 | . . . 1 . 3 2 . 1 . . . . . 1 . 2 . . . . . . 1 . . . . 1 . . . . . 1 . Scanalyzer 36 | . . . 3 . . 2 . 4 . . . . . 3 . . . . . . 22 . . . . . . . 2 . . . . . . Insert Component 17 | . . . 1 . . 1 . 2 . . . . . 2 . . . . . . 9 . . . . . . . 2 . . . . . . Analyze 18 | . . . 1 . . 1 . 2 . . . . . 1 . . . . . . 13 . . . . . . . . . . . . . . Retrieve Study 1 | . . . 1 . . . . . . . . . . . . . . . . . . . . . . . . . . . . . . . . Garrison Access Hacks 5 | . . . . . . . . . . . . 1 . . . . . . . . . . 1 . . . . . . . 1 1 1 . . Unlock Access 1 | . . . . . . . . . . . . 1 . . . . . . . . . . . . . . . . . . . . . . . Seal Access 4 | . . . . . . . . . . . . . . . . . . . . . . . 1 . . . . . . . 1 1 1 . . Unauthorized Hacks 68 | . 8 . . 3 10 1 . 1 4 . . 3 . 1 . 4 . . . . 5 . 15 . . . . 1 5 1 . 2 4 . . Terminals 49 | . 8 . . 2 7 . . 1 3 . . 3 . . . 2 . . . . 4 . 12 . . . . 1 5 . . . 1 . . Track 2 | . . . . . . . . . . . . . . . . . . . . . 1 . . . . . . . 1 . . . . . . Assimilate 4 | . . . . . . . . . . . . . . . . 1 . . . . . . 1 . . . . . 1 . . . 1 . . Botnet 21 | . 3 . . 1 2 . . 1 2 . . . . . . 1 . . . . 2 . 5 . . . . 1 3 . . . . . . Detonate 1 | . . . . . . . . . . . . 1 . . . . . . . . . . . . . . . . . . . . . . . Operators 4 | . . . . 1 . . . . 1 . . . . . . . . . . . 1 . 1 . . . . . . . . . . . . Skim 15 | . 5 . . . 5 . . . . . . . . . . . . . . . . . 5 . . . . . . . . . . . . Sabotage 2 | . . . . . . . . . . . . 2 . . . . . . . . . . . . . . . . . . . . . . . Fabricators 12 | . . . . . . . . . . . . . . 1 . 2 . . . . 1 . 3 . . . . . . . . 2 3 . . Report 2 | . . . . . . . . . . . . . . . . 1 . . . . . . . . . . . . . . . . 1 . . Prioritize 4 | . . . . . . . . . . . . . . 1 . . . . . . 1 . 1 . . . . . . . . . 1 . . Liberate 4 | . . . . . . . . . . . . . . . . 1 . . . . . . 1 . . . . . . . . 1 1 . . Fabnet 2 | . . . . . . . . . . . . . . . . . . . . . . . 1 . . . . . . . . 1 . . . Repair Stations 3 | . . . . 1 . 1 . . 1 . . . . . . . . . . . . . . . . . . . . . . . . . . Mechanics 2 | . . . . . . 1 . . 1 . . . . . . . . . . . . . . . . . . . . . . . . . . Patch 1 | . . . . 1 . . . . . . . . . . . . . . . . . . . . . . . . . . . . . . . Recycling Units 3 | . . . . . 3 . . . . . . . . . . . . . . . . . . . . . . . . . . . . . . Tunnel 3 | . . . . . 3 . . . . . . . . . . . . . . . . . . . . . . . . . . . . . . Scanalyzers . | . . . . . . . . . . . . . . . . . . . . . . . . . . . . . . . . . . . . Garrison Access 1 | . . . . . . . . . . . . . . . . . . . . . . . . . . . . . . 1 . . . . . Jam 1 | . . . . . . . . . . . . . . . . . . . . . . . . . . . . . . 1 . . . . . Data Cores Recovered 5 | . . . . . . . . 1 . . . 1 . . . . . . . . 1 . . . . . . 1 . . . . . 1 . Used 3 | . . . . . . . . . . . . . . . . . . . . . 1 . . . . . . 1 . . . . . 1 . Hacking Detections 119 | . 6 . 4 5 5 3 . 9 8 . . 3 2 10 . 6 . . . . 7 . 10 . . . . 6 13 3 1 9 4 5 . Full Trace Events 8 | . . . . . 1 1 . 1 . . . . . . . . . . . . 1 . 2 . . . . 1 1 . . . . . . Feedback Events . | . . . . . . . . . . . . . . . . . . . . . . . . . . . . . . . . . . . . Feedback Blocked . | . . . . . . . . . . . . . . . . . . . . . . . . . . . . . . . . . . . . Robot Schematics Acquired 54 | . 1 . . . . . . . . . . . . . . . . . . . . . . . 53 . . . . . . . . . . Robots Built 2 | . . . . . . . . . . . . . . 2 . . . . . . . . . . . . . . . . . . . . . Authchips . | . . . . . . . . . . . . . . . . . . . . . . . . . . . . . . . . . . . . Time 67 | . . . . . . . . . . . . . . 67 . . . . . . . . . . . . . . . . . . . . . Total Robot Build Rating 8 | . . . . . . . . . . . . . . 8 . . . . . . . . . . . . . . . . . . . . . Part Schematics Acquired 33 | . . . 1 . 1 1 . 1 3 . . . . 1 . 2 . . 4 . 13 . . . . . . . . . . 6 . . . Parts Built 6 | . . . . . . . . . . . . . . . . 2 . . . . 4 . . . . . . . . . . . . . . Authchips . | . . . . . . . . . . . . . . . . . . . . . . . . . . . . . . . . . . . . Time 212 | . . . . . . . . . . . . . . . . 53 . . . . 90 . 69 . . . . . . . . . . . . Total Part Build Rating 40 | . . . . . . . . . . . . . . . . 12 . . . . 28 . . . . . . . . . . . . . . Part Studies Acquired 1 | . . . 1 . . . . . . . . . . . . . . . . . . . . . . . . . . . . . . . . Parts Repaired 5 | . . . . . . . . . 1 . . . . 3 . 1 . . . . . . . . . . . . . . . . . . . Time 253 | . . . . . . . . . 78 . . . . 141 . 34 . . . . . . . . . . . . . . . . . . . Parts Recycled . | . . . . . . . . . . . . . . . . . . . . . . . . . . . . . . . . . . . . Recycled Matter . | . . . . . . . . . . . . . . . . . . . . . . . . . . . . . . . . . . . . Retrieved Matter . | . . . . . . . . . . . . . . . . . . . . . . . . . . . . . . . . . . . . Retrieved Components 34 | . . . 2 . 13 6 . 3 . . . . . 4 . . . . . . . . . . . . . 3 . . . . . 3 . Parts Scanalyzed 15 | . . . 1 . . 1 . 2 . . . . . 2 . . . . . . 9 . . . . . . . . . . . . . . Part Schematics Acquired 13 | . . . 1 . . 1 . 1 . . . . . 1 . . . . . . 9 . . . . . . . . . . . . . . Parts Damaged 1 | . . . . . . . . . . . . . . 1 . . . . . . . . . . . . . . . . . . . . . Bothacking | -11 -10 -10 -8 -8 -8 -6 -6 -6 -6 -6 -6 -6 -6 -5 -5 -5 -5 -5 -5 -4 -4 -4 -4 -4 -4 -4 -3 -3 -3 -3 -2 -2 -1 -1 -1 ------------ Run | Yrd Mat Sub Mat Sto Rec Fac Was Fac Ext Cet Arc Hub Gar Fac Was Fac Upp Upp Zhi Pro Fac Was Fac Upp Upp War Pro Res Qua Frg Res Tes Acc Com Ac0 Used RIF Installer . | . . . . . . . . . . . . . . . . . . . . . . . . . . . . . . . . . . . . Robots Hacked 10 | . . . . . . . . . . . . . . . . . . . . . 1 . . . . . . . . . . . . 9 . Non-combat 1 | . . . . . . . . . . . . . . . . . . . . . 1 . . . . . . . . . . . . . . Combat 9 | . . . . . . . . . . . . . . . . . . . . . . . . . . . . . . . . . . 9 . Robot Hacks Applied 2 | . . . . . . . . . . . . . . . . . . . . . 1 . . . . . . . . . . . . 1 . parse_system 1 | . . . . . . . . . . . . . . . . . . . . . . . . . . . . . . . . . . 1 . find_recycling 1 | . . . . . . . . . . . . . . . . . . . . . 1 . . . . . . . . . . . . . . Manual 1 | . . . . . . . . . . . . . . . . . . . . . . . . . . . . . . . . . . 1 . Relay Couplers Released 52 | . . . . . . . . . . . . . 38 . . . . . . . . . . . . . . 4 4 . 4 . 2 . . Machine Destruction 48 | . . . . . . . . . . . . . 38 . . . . . . . . . . . . . . 4 . . 4 . 2 . . Programmers 4 | . . . . . . . . . . . . . . . . . . . . . . . . . . . . . 4 . . . . . . Fabnet Peak Effective % 3 | . . . . . . . . . . . . . . . . . . . . . . . . . . . . . . . . . 3 3 3 Autooverrided 8 | . . . . . . . . . . . . . . . . . . . . . . . . . . . . . . . . . . 8 . Robots Rewired 34 | . . . . . . . . . 13 . . . 9 . . . . 2 . . 2 . 1 . . 5 . . . . . . 2 . . Allies Hacked 4 | . . . . . . . . . . . . . . . . . . . . . . . . . . . . . . . . . 2 2 . Hacks Repelled . | . . . . . . . . . . . . . . . . . . . . . . . . . . . . . . . . . . . . Allies | -11 -10 -10 -8 -8 -8 -6 -6 -6 -6 -6 -6 -6 -6 -5 -5 -5 -5 -5 -5 -4 -4 -4 -4 -4 -4 -4 -3 -3 -3 -3 -2 -2 -1 -1 -1 -------- Run | Yrd Mat Sub Mat Sto Rec Fac Was Fac Ext Cet Arc Hub Gar Fac Was Fac Upp Upp Zhi Pro Fac Was Fac Upp Upp War Pro Res Qua Frg Res Tes Acc Com Ac0 Total Allies 78 | . . . . . . . 20 . 16 5 . . 9 2 . 1 . 2 . . 2 . 2 . . 5 . . . . . . 6 8 . Largest Group 25 | . . . . . . . 20 20 21 25 23 20 6 2 . 1 . 1 1 1 1 . 1 . . 5 4 3 . . . . 4 6 . Highest-Rated Group 1259 | . . . . . . . 760 760 825 1259 1214 999 159 64 . 26 . 49 49 49 31 . 48 . . 291 242 192 . . . . 200 304 . Highest-Rated Ally 159 | . . . . . . . 50 50 159 159 159 96 51 32 . 26 . 49 49 49 31 . 48 . . 64 64 64 . . . . 58 69 . Initial Warlord ECA Mod 15 | . . . . . . . . . . . . . . 15 15 15 15 15 15 14 14 14 14 13 13 13 12 12 12 12 11 11 10 10 . Warlord Squad Rendezvous 1 | . . . . . . . . . . . . . . . . . . . . . . . 1 . . . . . . . . . . . . Muscle 1 | . . . . . . . . . . . . . . . . . . . . . . . 1 . . . . . . . . . . . . Total Orders 14 | . . . . . . . . . . . . . . . . . . . . . 6 . . . . . 2 4 . . 2 . . . . STAY 4 | . . . . . . . . . . . . . . . . . . . . . 2 . . . . . 1 1 . . . . . . . ROAM 1 | . . . . . . . . . . . . . . . . . . . . . 1 . . . . . . . . . . . . . . FOLLOW 4 | . . . . . . . . . . . . . . . . . . . . . 2 . . . . . 1 1 . . . . . . . DROP 1 | . . . . . . . . . . . . . . . . . . . . . 1 . . . . . . . . . . . . . . EXPLORE 4 | . . . . . . . . . . . . . . . . . . . . . . . . . . . . 2 . . 2 . . . . Ally Attacks 493 | . . . . . . . . 169 60 22 21 72 58 7 . . . 9 . . . . 2 . . 15 7 . . . . . 3 48 . Total Damage 14481 | . . . . . . . . 3346 1212 524 394 3309 1604 399 . . . 145 . . . . 86 . . 769 305 . . . . . 96 2292 . Kills 86 | . . . . . . . . 22 8 2 2 14 11 1 . . . 4 . . . . . . . 5 1 . . . . . . 16 . Allies Corrupted 4 | . . . . . . . . . . . . 2 . . . . . . . . . . . . . . . 1 . . . . . 1 . Allies Melted 3 | . . . . . . . . . . . . . 1 . . . . . . . . . 1 . . 1 . . . . . . . . . Intel | -11 -10 -10 -8 -8 -8 -6 -6 -6 -6 -6 -6 -6 -6 -5 -5 -5 -5 -5 -5 -4 -4 -4 -4 -4 -4 -4 -3 -3 -3 -3 -2 -2 -1 -1 -1 ------- Run | Yrd Mat Sub Mat Sto Rec Fac Was Fac Ext Cet Arc Hub Gar Fac Was Fac Upp Upp Zhi Pro Fac Was Fac Upp Upp War Pro Res Qua Frg Res Tes Acc Com Ac0 Active Infowar (turns) 31207 | 29 856 530 581 647 2562 750 206 325 411 . . . . 957 95 346 675 569 153 381 1498 87 1042 625 1253 1154 910 933 1191 3544 1243 1030 528 6049 47 Optics 16529 | . . 109 . . . . . . . . . . . . . . . . . . 962 87 1042 625 1253 126 . . 205 3223 1243 1030 528 6049 47 Sensors 21394 | . . 292 581 647 2562 750 206 325 411 . . . . 882 95 346 675 569 153 381 1392 . 904 625 1128 1148 910 933 1191 2737 691 401 458 1 . Zeronet 718 | . . . . . . . . . . . . . . . . . . . . . . . . . . . . . . . . 692 26 . . Seismic 1014 | 29 856 129 . . . . . . . . . . . . . . . . . . . . . . . . . . . . . . . . . Cloaking 2123 | . . . . . . . . . . . . . . . . . . . . . . . . . . . . . . 163 361 928 465 206 . Jamming 1588 | . . . . . . . . . . . . . . 75 . . . . . . 14 . 9 . . . . 224 148 1117 . . . 1 . ECM 2 | . . . . . . . . . . . . . . . . . . . . . . . . . . . . . . 2 . . . . . Robot Analysis Total 104 | . 4 . . . . . . . 1 . . . . 1 . . . . 4 . . . . . 93 . . . . . . 1 . . . Derelict Logs Recovered 8 | . . 3 . . . . . . . . . . . . . . 1 1 . 1 . . . 1 1 . . . . . . . . . . Drone Launches 6 | . . . . . . . . . . . . . . . . . . . . . . . . . . . . 2 . . 4 . . . . Drone Recoveries . | . . . . . . . . . . . . . . . . . . . . . . . . . . . . . . . . . . . . Exploration | -11 -10 -10 -8 -8 -8 -6 -6 -6 -6 -6 -6 -6 -6 -5 -5 -5 -5 -5 -5 -4 -4 -4 -4 -4 -4 -4 -3 -3 -3 -3 -2 -2 -1 -1 -1 ------------- Run | Yrd Mat Sub Mat Sto Rec Fac Was Fac Ext Cet Arc Hub Gar Fac Was Fac Upp Upp Zhi Pro Fac Was Fac Upp Upp War Pro Res Qua Frg Res Tes Acc Com Ac0 Turns Passed 37787 | 87 856 3582 656 908 2597 750 206 325 942 394 213 241 1203 1022 197 367 695 652 162 434 1560 87 1053 625 1253 1154 918 933 1191 3627 1243 1030 528 6049 47 Spaces Moved 39121 | 75 521 2380 362 480 1184 462 336 540 760 213 79 297 1374 1594 259 658 1308 1000 203 774 1261 209 1491 817 2125 1290 823 1133 1426 2610 2153 1480 628 6764 52 Core 6 | 6 . . . . . . . . . . . . . . . . . . . . . . . . . . . . . . . . . . . Treads 7687 | . . . . . 243 456 247 . . . 6 297 1374 68 . . . . . . 340 . . . . . . 33 . . 944 . . 3627 52 Legs 17734 | . . . . . . . 89 540 760 213 73 . . 1526 259 658 1308 1000 203 774 589 . . 509 2125 840 811 1100 1426 2373 558 . . . . Wheels 4734 | 69 521 2380 362 480 922 . . . . . . . . . . . . . . . . . . . . . . . . . . . . . . Hover 1110 | . . . . . . . . . . . . . . . . . . . . . 332 209 338 . . . . . . 212 19 . . . . Flight 7850 | . . . . . 19 6 . . . . . . . . . . . . . . . . 1153 308 . 450 12 . . 25 632 1480 628 3137 . Fastest Speed 26 | 50 100 90 109 113 116 46 46 46 46 46 46 46 46 46 46 46 46 46 46 46 38 38 33 33 33 26 60 60 60 33 45 45 45 36 36 Average Speed 58 | 96 111 120 125 127 158 128 46 46 46 46 46 46 46 46 46 46 46 46 46 46 87 38 34 37 33 41 60 60 60 50 45 45 45 43 36 Slowest Speed 212 | 100 115 210 150 155 212 164 46 46 46 46 46 46 46 46 46 46 46 46 46 46 191 38 38 81 33 60 60 60 60 138 45 45 45 45 36 Overloaded Moves . | . . . . . . . . . . . . . . . . . . . . . . . . . . . . . . . . . . . . Propulsion Burnouts . | . . . . . . . . . . . . . . . . . . . . . . . . . . . . . . . . . . . . Robots Hopped 12 | . . . . . . . . . . . . . . . . . . . . . . . 6 . . 1 . . . . 2 2 1 . . Potential Cave-ins 6 | . . . . . . . . . . . . . . . . . . . . 1 . . . . . . . . . 5 . . . . . Cave-ins Triggered 1 | . . . . . . . . . . . . . . . . . . . . 1 . . . . . . . . . . . . . . . Teleports 4 | . . . . . . . . . . . . . . . . . . . . . . . . . . . . . 1 1 . . . 1 1 Exploration Rate (%) 62 | 5 57 95 28 74 98 14 94 20 87 67 72 34 96 40 84 14 98 88 60 89 31 88 41 74 97 92 69 34 89 48 58 94 19 92 3 Regions Visited 35 Branch Regions 20 Pre-discovered Areas 13 | . 4 2 . . 3 . . . . . . . . . . . 1 . 3 . . . . . . . . . . . . . . . . Known Exits Taken 20 | . . . 1 1 . . . 1 . . . 1 . . . 1 1 1 1 1 . . 1 1 1 1 1 1 1 1 1 1 1 . . Unknown Exits Taken 8 | 1 1 1 . . 1 . . . 1 1 1 . . . . . . . . . . . . . . . . . . . . . . 1 . Scrap Searched 27 | . . 12 . . . . . . . . . . . . . . 4 3 . 1 . . . 1 2 . 4 . . . . . . . . Spaces Dug 307 | . . 3 1 . 1 14 . . . . . 1 1 18 1 3 3 . . 4 76 . 40 . . . 21 12 10 47 2 29 11 9 . Terrain Destroyed 967 | . . 4 15 12 1 15 . 1 5 2 . 16 186 31 2 5 3 12 . 10 182 . 111 8 26 2 38 39 24 70 5 43 28 69 2 Melee 22 | . . . 1 . 1 7 . . . . . . . . . . . . . . . . . . . . . . . 11 1 1 . . . Projectile 552 | . . 4 1 . . 8 . 1 5 2 . 16 26 31 2 5 3 12 . 10 98 . 52 8 26 2 38 36 24 58 4 29 13 36 2 AOE 350 | . . . 13 12 . . . . . . . . 160 . . . . . . . 84 . 59 . . . . 3 . 1 . . 12 6 . Terrain Rammed . | . . . . . . . . . . . . . . . . . . . . . . . . . . . . . . . . . . . . Walls Destroyed . | . . . . . . . . . . . . . . . . . . . . . . . . . . . . . . . . . . . . Machines Disabled . | . . . . . . . . . . . . . . . . . . . . . . . . . . . . . . . . . . . . Actions | -11 -10 -10 -8 -8 -8 -6 -6 -6 -6 -6 -6 -6 -6 -5 -5 -5 -5 -5 -5 -4 -4 -4 -4 -4 -4 -4 -3 -3 -3 -3 -2 -2 -1 -1 -1 --------- Run | Yrd Mat Sub Mat Sto Rec Fac Was Fac Ext Cet Arc Hub Gar Fac Was Fac Upp Upp Zhi Pro Fac Was Fac Upp Upp War Pro Res Qua Frg Res Tes Acc Com Ac0 Total 52235 | 85 719 2889 507 676 1886 597 387 615 1331 497 251 372 1847 1818 306 713 1394 1158 272 828 1598 215 1956 1120 2629 1896 1217 1343 1713 4681 2388 1757 817 9681 76 Wait 9811 | 1 136 245 56 31 634 87 30 67 452 267 169 33 296 105 6 28 77 93 53 22 160 4 322 276 433 514 348 118 167 1570 135 150 125 2594 7 Move 39068 | 74 520 2379 361 479 1183 462 335 539 759 212 78 297 1373 1594 258 657 1307 999 202 772 1261 208 1480 816 2124 1287 822 1132 1425 2609 2149 1475 625 6763 52 Hop 9 | . . . . . . . . . . . . . . . . . . . . . . . 4 . . 1 . . . . 1 2 1 . . Pick Up 272 | 1 11 44 6 22 4 11 10 2 1 2 . 1 6 9 1 5 1 1 3 . 8 1 15 . 4 7 2 2 11 50 12 2 1 15 1 Fast Attach 197 | 6 2 14 13 25 4 1 . . . . . 1 . 5 . . . . 6 . 6 . 9 . 1 6 2 14 11 25 11 19 . 14 2 Attach 72 | 1 1 8 1 2 4 4 . . . . . 1 . 1 . 2 . . . 2 3 . 4 . . . . 2 2 19 4 1 3 7 . Detach 39 | . . 1 . . 1 3 . . . . . 1 . 1 . . . . . . 3 . . . . . . 1 2 11 1 3 . 10 1 Swap 289 | 1 4 10 9 16 3 . . . 4 2 . 5 . 20 4 3 4 7 . 7 19 1 22 1 7 . 2 2 21 41 12 15 11 36 . Drop 383 | . 5 44 15 20 27 7 4 3 1 1 . . 3 10 1 5 . 1 8 . 9 1 22 3 4 14 4 16 20 64 21 22 . 26 2 Fire 1817 | 1 40 133 44 78 25 15 2 4 24 13 4 33 123 72 36 12 5 37 . 24 129 . 73 24 56 24 37 55 54 272 33 59 50 215 11 Melee 41 | . . . 1 3 1 7 . . . . . . . . . . . . . . . . . . . . . . . 12 8 9 . . . Ram . | . . . . . . . . . . . . . . . . . . . . . . . . . . . . . . . . . . . . Kick 7 | . . . . . . . . . 4 . . . . 1 . 1 . . . . . . . . . . . 1 . . . . . . . Crush . | . . . . . . . . . . . . . . . . . . . . . . . . . . . . . . . . . . . . Escape Stasis 5 | . . . . . . . . . . . . . . . . . . . . 1 . . . . . . . . . 4 . . . . . Rewire 204 | . . . . . . . 6 . 86 . . . 46 . . . . 16 . . . . 5 . . 43 . . . . . . 1 1 . Trap 12 | . . 3 1 . . . . . . . . . . . . . . 4 . . . . . . . . . . . 4 . . . . . Miscellaneous 9 | . . 8 . . . . . . . . . . . . . . . . . . . . . . . . . . . . 1 . . . . Route ------- -11/Scrapyard -10/Materials (discovered 4 exits: *Mat x3 / *Sub) -10/Subcaves (discovered 2 exits: *Mat x2) -8/Materials (discovered 2 exits: *Sto x2) -8/Storage -8/Recycling -6/Factory -6/Waste -6/Factory (discovered 4 exits: Low x2 / *Ext x2) -6/Extension (discovered 2 exits: *Fac / *Cet) -6/Cetus (discovered 2 exits: *Fac / [*Arc]) -6/Archives -6/Hub_04(d) (discovered 2 exits: *Fac / Gar) -6/Garrison (discovered 3 exits: *Fac x3) -5/Factory (discovered 4 exits: *Fac x2 / Upp x2) -5/Waste -5/Factory (discovered 3 exits: *Fac / *Upp x2) -5/Upper Caves -5/Upper Caves (discovered 2 exits: *Fac / *Zhi) -5/Zhirov -4/Proximity Caves -4/Factory (discovered 4 exits: *Res x2 / *Upp x2) -4/Waste -4/Factory (discovered 5 exits: *Res x3 / *Upp x2) -4/Upper Caves -4/Upper Caves (discovered 2 exits: *Res / *War) -4/Warlord -3/Proximity Caves -3/Research (discovered 4 exits: *Res / Arm / *Qua x2) -3/Quarantine (discovered 3 exits: *Res / *Sec / *Frg) -3/Protoforge -2/Research (discovered 3 exits: *Acc / *Tes x2) -2/Testing -1/Access -1/Command (discovered 3 exits: *Sur x2 / [*Ac0]) -1/Access_0 (discovered 1 exit: *Sur) History --------- Turn | Location | Event 4 | -11/Scrapyard | Discovered new exit (range 15) 88 | -11/Scrapyard | Entered Materials 226 | -10/Materials | Discovered new exit (range 16) 276 | -10/Materials | Learned Storage stockpile data 307 | -10/Materials | Learned location of Mines (-9) 317 | -10/Materials | Build established: Mutant 329 | -10/Materials | Identified exit to Materials 341 | -10/Materials | Learned location of 2 exits from Mines 345 | -10/Materials | Learned location of Mines (-8) 346 | -10/Materials | Learned location of Storage (-8) 348 | -10/Materials | Loaded intel: 2 recycling unit locations 378 | -10/Materials | Learned 2 Mines zone layouts 588 | -10/Materials | Derelicts attacked the area 937 | -10/Materials | Discovered new exit (range 8) 944 | -10/Materials | Entered Subcaves 997 | -10/Subcaves | Learned location of Zion (-6) 1186 | -10/Subcaves | Met a Zionite searching for "candidates" 1231 | -10/Subcaves | Shifting Twisted Machinery released Sub. Machine Gun 1987 | -10/Subcaves | Build established: Subdweller-Mutant 2390 | -10/Subcaves | Discovered new exit (range 5) 2462 | -10/Subcaves | Visited 4L-MR0's lab 2474 | -10/Subcaves | Found Cargo Legs 2692 | -10/Subcaves | Discovered new exit (range 9) 2811 | -10/Subcaves | Shifting Twisted Machinery released Flamer 2951 | -10/Subcaves | Learned Materials trap positions 2952 | -10/Subcaves | Learned location of 1 exit from Materials 2980 | -10/Subcaves | Core integrity fell below 50% 3409 | -10/Subcaves | Build established: Hauler-Mutant 3625 | -10/Subcaves | A swath of the cavern ceiling suddenly collapsed 4064 | -10/Subcaves | Ambushed by angry Subdweller bent on revenge 4070 | -10/Subcaves | Core integrity fell below 20% 4299 | -10/Subcaves | Found SUBCON Basin 4526 | -10/Subcaves | Build established: Mutant 4526 | -10/Subcaves | Entered Materials 4526 | -8/Materials | Evolved 4 slots: Propulsion x1, Utility x2, Weapon x1 4527 | -8/Materials | Identified exit to Storage 4528 | -8/Materials | Loaded intel: 27 trap records 4657 | -8/Materials | Central database locked down 4995 | -8/Materials | Build established: Scavenger-Tank 5182 | -8/Materials | Entered Storage 5349 | -8/Storage | Build established: Tank 5659 | -8/Storage | Identified exit to Recycling 6087 | -8/Storage | Used back door to open Recycling access 6090 | -8/Storage | Entered Recycling 6823 | -8/Recycling | Entered Scraplab 6829 | -8/Recycling | Found Prototype Device 6829 | -8/Recycling | Identified Scrap Engine 7214 | -8/Recycling | Build established: Construct 7250 | -8/Recycling | Discovered new exit (range 15) 8687 | -8/Recycling | Entered Factory 8687 | -6/Factory | Evolved 4 slots: Propulsion x2, Utility x2 9437 | -6/Factory | Sucked down chute 9437 | -6/Factory | Entered Waste 9438 | -6/Waste | Joined by Warlord forces that had cleared the area 9485 | -6/Waste | Found Damper Plating 9490 | -6/Waste | Discovered new exit (range 15) 9643 | -6/Waste | Entered Factory 9643 | -6/Factory | Accompanied by 20 allies 9824 | -6/Factory | Identified exit to Lower Caves 9824 | -6/Factory | Identified exit to Extension 9906 | -6/Factory | Spotted B-75 Beast 9964 | -6/Factory | Lost 7 allies 9968 | -6/Factory | Entered Extension 9968 | -6/Extension | Accompanied by 6 allies 10197 | -6/Extension | Repaired Broken Imp. Dynamic Insulation System 10439 | -6/Extension | Spotted B-75 Beast 10442 | -6/Extension | Destroyed B-75 Beast 10455 | -6/Extension | Spotted B-75 Beast 10460 | -6/Extension | Destroyed B-75 Beast 10491 | -6/Extension | Rescued a captive Derelict 10553 | -6/Extension | Rescued a captive Derelict 10599 | -6/Extension | Rescued a captive Derelict 10649 | -6/Extension | Rescued A7 10734 | -6/Extension | Discovered new exit (range 10) 10735 | -6/Extension | Discovered new exit (range 6) 10874 | -6/Extension | Build established: Commander-Construct 10910 | -6/Extension | Entered Cetus 10910 | -6/Cetus | Accompanied by 21 allies (A7) 10915 | -6/Cetus | Acquired a Cetus Manufacturing Module code from A7 10917 | -6/Cetus | Spotted Cetus Guard 10917 | -6/Cetus | Spotted Cetus Guard 10924 | -6/Cetus | Destroyed Cetus Guard 10927 | -6/Cetus | Destroyed Cetus Guard 10928 | -6/Cetus | Spotted Cetus Guard 10928 | -6/Cetus | Destroyed Cetus Guard 10941 | -6/Cetus | Allies destroyed Cetus Guard 10967 | -6/Cetus | Started Cetus Manufacturing Module 10977 | -6/Cetus | Escorted A7 to Cetus Mainframe 10992 | -6/Cetus | Manufactured an Enhanced Grunt 11017 | -6/Cetus | Manufactured an Enhanced Grunt 11042 | -6/Cetus | Manufactured an Enhanced Grunt 11067 | -6/Cetus | Manufactured an Enhanced Grunt 11082 | -6/Cetus | Discovered new exit (range 15) 11092 | -6/Cetus | Manufactured an Enhanced Grunt 11099 | -6/Cetus | Spotted Cetus Guard 11099 | -6/Cetus | Spotted Cetus Guard 11100 | -6/Cetus | Destroyed Cetus Guard 11101 | -6/Cetus | Spotted Cetus Guard 11102 | -6/Cetus | Destroyed Cetus Guard 11105 | -6/Cetus | Allies destroyed Cetus Guard 11105 | -6/Cetus | Spotted Cetus Guard 11105 | -6/Cetus | Destroyed Cetus Guard 11113 | -6/Cetus | Discovered new exit (range 15) 11115 | -6/Cetus | Met Revision 17 11304 | -6/Cetus | Entered Archives 11304 | -6/Archives | Accompanied by 23 allies (A7) 11309 | -6/Archives | Received a hacking code to weaken MAIN.C 11419 | -6/Archives | Discovered new exit (range 16) 11517 | -6/Archives | Entered Hub_04(d) 11517 | -6/Hub_04(d) | Accompanied by 20 allies 11517 | -6/Hub_04(d) | Discovered new exit (range 11) 11600 | -6/Hub_04(d) | Network Hub disabled 11604 | -6/Hub_04(d) | Spotted Lightning 11604 | -6/Hub_04(d) | Spotted Lightning 11605 | -6/Hub_04(d) | Spotted Lightning 11630 | -6/Hub_04(d) | Allies destroyed Lightning 11635 | -6/Hub_04(d) | Allies destroyed Lightning 11636 | -6/Hub_04(d) | Allies destroyed Lightning 11649 | -6/Hub_04(d) | Found Prototype Processor 11649 | -6/Hub_04(d) | Identified Exp. Targeting Computer 11655 | -6/Hub_04(d) | Found Prototype Device 11656 | -6/Hub_04(d) | Identified Exp. EM Shield 11662 | -6/Hub_04(d) | Lost 12 allies 11680 | -6/Hub_04(d) | Spotted Lightning 11680 | -6/Hub_04(d) | Spotted Lightning 11737 | -6/Hub_04(d) | Spotted Lightning 11744 | -6/Hub_04(d) | Network Hub disabled 11746 | -6/Hub_04(d) | Spotted Lightning 11758 | -6/Hub_04(d) | Identified exit to Garrison 11758 | -6/Hub_04(d) | Entered Garrison 11770 | -6/Garrison | Triggered checkpoint 11782 | -6/Garrison | Triggered checkpoint 11825 | -6/Garrison | Destroyed 7 combat bots 11852 | -6/Garrison | Triggered checkpoint 11908 | -6/Garrison | Triggered checkpoint 11946 | -6/Garrison | Lost 3 allies 11984 | -6/Garrison | Triggered checkpoint 11999 | -6/Garrison | Garrison Relay disabled 12009 | -6/Garrison | Discovered new exit (range 12) 12070 | -6/Garrison | Triggered checkpoint 12108 | -6/Garrison | Triggered checkpoint 12200 | -6/Garrison | Triggered checkpoint 12202 | -6/Garrison | Garrison Relay disabled 12209 | -6/Garrison | Build established: Construct 12354 | -6/Garrison | Garrison Relay disabled 12401 | -6/Garrison | Phase Generator disabled 12415 | -6/Garrison | Garrison Relay disabled 12426 | -6/Garrison | H-XX Assembler disabled 12532 | -6/Garrison | Discovered new exit (range 10) 12547 | -6/Garrison | Garrison Relay disabled 12548 | -6/Garrison | Garrison Relay disabled 12554 | -6/Garrison | Garrison Relay disabled 12557 | -6/Garrison | Garrison Relay disabled 12623 | -6/Garrison | Garrison Relay disabled 12718 | -6/Garrison | Discovered new exit (range 10) 12961 | -6/Garrison | Entered Factory 12961 | -5/Factory | Accompanied by 1 ally 12961 | -5/Factory | Evolved 2 slots: Propulsion x1, Utility x1 13004 | -5/Factory | Repaired Graphene Brace 13189 | -5/Factory | Discovered new exit (range 15) 13261 | -5/Factory | First assault squad dispatched 13280 | -5/Factory | Discovered new exit (range 14) 13286 | -5/Factory | Identified exit to Factory 13313 | -5/Factory | Repaired Centrium Medium Armor Plating? 13384 | -5/Factory | Identified exit to Upper Caves 13707 | -5/Factory | Fabricated Y-54 Guardian? 13828 | -5/Factory | Repaired Broken Prc. Matter Filter? 13983 | -5/Factory | Sucked down chute 13983 | -5/Factory | Entered Waste 13986 | -5/Waste | Found Adv. Powered Armor 13990 | -5/Waste | Spotted C-40 Crusher 13998 | -5/Waste | EMP discharged 13999 | -5/Waste | Spotted C-40 Crusher 13999 | -5/Waste | Spotted C-40 Crusher 14033 | -5/Waste | Destroyed C-40 Crusher 14036 | -5/Waste | Destroyed C-40 Crusher 14050 | -5/Waste | Destroyed C-40 Crusher 14055 | -5/Waste | Spotted C-40 Crusher 14059 | -5/Waste | Destroyed C-40 Crusher 14062 | -5/Waste | Spotted C-40 Crusher 14075 | -5/Waste | Destroyed C-40 Crusher 14098 | -5/Waste | EMP discharged 14099 | -5/Waste | Spotted C-40 Crusher 14127 | -5/Waste | Destroyed C-40 Crusher 14161 | -5/Waste | Discovered new exit (range 12) 14180 | -5/Waste | Identified exit to Factory 14180 | -5/Waste | Entered Factory 14290 | -5/Factory | Repaired Adv. Powered Armor? 14360 | -5/Factory | Discovered exit to Factory (range 15) 14528 | -5/Factory | Fabricated Imp. Dynamic Insulation System (x2) 14547 | -5/Factory | Entered Upper Caves 14553 | -5/Upper Caves | Met a Warlord Commander 14554 | -5/Upper Caves | Learned location of Warlord (-4) 14555 | -5/Upper Caves | Warlord Commander delivered Encrypted Comm Array 14555 | -5/Upper Caves | Found Encrypted Comm Array 14744 | -5/Upper Caves | Entered an active Warlord outpost 14754 | -5/Upper Caves | Learned 8 Factory zone layouts 14754 | -5/Upper Caves | Learned Research stockpile data 14958 | -5/Upper Caves | Learned Factory terminal intel 15021 | -5/Upper Caves | Discovered new exit (range 8) 15025 | -5/Upper Caves | Identified exit to Upper Caves 15028 | -5/Upper Caves | Encountered a Warlord checkpoint 15139 | -5/Upper Caves | Attracted the attention of an 0b10 checkpoint 15242 | -5/Upper Caves | Entered another Upper Caves area 15242 | -5/Upper Caves | Discovered exit to Factory (range 7) 15424 | -5/Upper Caves | Attracted the attention of an 0b10 outpost 15686 | -5/Upper Caves | Learned Factory emergency access door positions 15737 | -5/Upper Caves | Found DCF Scrap (13 items) 15852 | -5/Upper Caves | Discovered new exit (range 15) 15859 | -5/Upper Caves | Identified exit to Zhirov 15894 | -5/Upper Caves | Entered Zhirov 15894 | -5/Zhirov | Accompanied by 1 ally 15894 | -5/Zhirov | Discovered new exit (range 3) 15903 | -5/Zhirov | Met Zhirov 15914 | -5/Zhirov | Found Alien Artifact 15914 | -5/Zhirov | Identified Integrated Reactor 15914 | -5/Zhirov | Installed Integrated Reactor, increased core energy generation (+10) 15923 | -5/Zhirov | Found Alien Artifact 15967 | -5/Zhirov | Identified exit to Proximity Caves 16020 | -5/Zhirov | Learned location of Quarantine (-3) 16020 | -5/Zhirov | Learned location of Command (-1) 16023 | -5/Zhirov | Zhirov requested help retrieving the SGEMP Prototype 16056 | -5/Zhirov | Entered Proximity Caves 16056 | -4/Proximity Caves | Accompanied by 1 ally 16077 | -4/Proximity Caves | Attracted the attention of an 0b10 checkpoint 16273 | -4/Proximity Caves | Crushed by falling debris 16432 | -4/Proximity Caves | Discovered exit to Factory (range 15) 16468 | -4/Proximity Caves | Learned Research interactive machine intel 16490 | -4/Proximity Caves | Entered Factory 16490 | -4/Factory | Evolved 2 slots: Power x1, Utility x1 16491 | -4/Factory | Identified exit to Research 16491 | -4/Factory | Identified exit to Upper Caves 16493 | -4/Factory | Loaded intel: 25 terminal locations 16728 | -4/Factory | Destroyed 11 combat bots 16853 | -4/Factory | Found Quantum Capacitor 16984 | -4/Factory | System corruption reached 10% 17009 | -4/Factory | Fabricated Biometal Medium Treads? 17622 | -4/Factory | Garrison activated, responded to threat 17740 | -4/Factory | First assault squad dispatched 17876 | -4/Factory | Fabricated Adv. System Restoration Module? 18050 | -4/Factory | Sucked down chute 18050 | -4/Factory | Entered Waste 18064 | -4/Waste | Spotted C-40 Crusher 18065 | -4/Waste | EMP discharged 18067 | -4/Waste | Spotted C-40 Crusher 18072 | -4/Waste | Spotted C-40 Crusher 18086 | -4/Waste | Spotted C-40 Crusher 18091 | -4/Waste | Discovered new exit (range 11) 18091 | -4/Waste | Spotted C-40 Crusher 18110 | -4/Waste | Spotted C-40 Crusher 18136 | -4/Waste | Identified exit to Factory 18137 | -4/Waste | Entered Factory 18393 | -4/Factory | Joined by Warlord Muscle squad 18520 | -4/Factory | Discovered exit to Research (range 20) 18559 | -4/Factory | Found Prototype Hackware 18559 | -4/Factory | Identified Exp. System Shield 19005 | -4/Factory | Unchained authorized (CL-0N3) 19006 | -4/Factory | Fabricated Adv. Heavy Siege Treads? 19117 | -4/Factory | Discovered exit to Research (range 18) 19168 | -4/Factory | Learned Armory fabricator intel 19184 | -4/Factory | K-01 Serf reconstituted as Combat Programmer 19186 | -4/Factory | Spotted Combat Programmer 19190 | -4/Factory | Entered Upper Caves 19217 | -4/Upper Caves | Learned Research machine intel 19348 | -4/Upper Caves | Unchained authorized (CL-0N3) 19426 | -4/Upper Caves | Discovered new exit (range 14) 19477 | -4/Upper Caves | Identified exit to Upper Caves 19776 | -4/Upper Caves | G-67 Veteran reconstituted as Hotshot 19777 | -4/Upper Caves | Spotted Hotshot 19800 | -4/Upper Caves | Hotshot reconstituted as CL-0N3 19815 | -4/Upper Caves | Entered another Upper Caves area 19876 | -4/Upper Caves | Entered an active Warlord outpost 19879 | -4/Upper Caves | Learned Armory emergency access door positions 19879 | -4/Upper Caves | Learned Factory garrison access intel 19898 | -4/Upper Caves | Discovered exit to Research (range 9) 19962 | -4/Upper Caves | Ambushed by wild Derelicts 20008 | -4/Upper Caves | Unchained authorized (CL-0N3) 20239 | -4/Upper Caves | TO-37E(S) reconstituted as Alpha 7 20239 | -4/Upper Caves | Spotted Alpha 7 20361 | -4/Upper Caves | Alpha 7 reconstituted as CL-0N3 20385 | -4/Upper Caves | Lost 3 allies 20671 | -4/Upper Caves | Learned Research stockpile data 20681 | -4/Upper Caves | SP-5X4(S) reconstituted as Thunder 20681 | -4/Upper Caves | Spotted Thunder 20776 | -4/Upper Caves | Destroyed Thunder 20776 | -4/Upper Caves | Thunder reconstituted as CL-0N3 20833 | -4/Upper Caves | Encountered a Warlord checkpoint 20836 | -4/Upper Caves | Discovered new exit (range 13) 20842 | -4/Upper Caves | Identified exit to Warlord 21023 | -4/Upper Caves | Destroyed CL-0N3 21025 | -4/Upper Caves | Extracted schematics, analyses from CL-0N3's data core 21068 | -4/Upper Caves | Entered Warlord 21079 | -4/Warlord | System corruption cleaned by Quarantine Array 21128 | -4/Warlord | Found Prototype Device 21128 | -4/Warlord | Identified Minesniffer Drone Bay 21190 | -4/Warlord | Found Prototype Device 21190 | -4/Warlord | Identified Thermal Barrier 21195 | -4/Warlord | Found Prototype Processor 21195 | -4/Warlord | Identified Exp. Core Analyzer 21199 | -4/Warlord | Found Exp. Targeting Computer 21230 | -4/Warlord | Visited the Vortex Lab 21234 | -4/Warlord | Found Prototype Energy Gun 21235 | -4/Warlord | Found Prototype Energy Gun 21237 | -4/Warlord | Found Prototype Energy Cannon 21238 | -4/Warlord | Found Prototype Energy Cannon 21247 | -4/Warlord | Warlord's base attacked by MAIN.C 21267 | -4/Warlord | Met Warlord 21562 | -4/Warlord | Lost 3 allies 21597 | -4/Warlord | Warlord forces counterattacked 21666 | -4/Warlord | Lost 4 allies 21721 | -4/Warlord | Destroyed Executioner 21799 | -4/Warlord | P-80 Master assimilated allied 0S-GC7(Y) 21801 | -4/Warlord | Spotted Executioner 21814 | -4/Warlord | Spotted B-90 Cyclops 21822 | -4/Warlord | P-80 Master assimilated allied 3O-NSX(Y) 21858 | -4/Warlord | Lost 29 allies 21871 | -4/Warlord | Spotted Executioner 21872 | -4/Warlord | Destroyed Executioner 21922 | -4/Warlord | Warlord base infiltrated, sounded retreat 22067 | -4/Warlord | Spotted B-90 Cyclops 22103 | -4/Warlord | Destroyed B-90 Cyclops 22105 | -4/Warlord | Lost 10 allies 22136 | -4/Warlord | Spotted Striker 22139 | -4/Warlord | Spotted Striker 22184 | -4/Warlord | Lost 5 allies 22194 | -4/Warlord | Discovered new exit (range 8) 22218 | -4/Warlord | Identified exit to Proximity Caves 22221 | -4/Warlord | Build established: Commander-Construct 22222 | -4/Warlord | Entered Proximity Caves 22222 | -3/Proximity Caves | Accompanied by 4 allies 22429 | -3/Proximity Caves | Attracted the attention of an 0b10 checkpoint 22618 | -3/Proximity Caves | Attacked by a faux Warlord 22948 | -3/Proximity Caves | Discovered exit to Research (range 7) 23043 | -3/Proximity Caves | Received a Behemoth hack from an annoying Tinkerer 23084 | -3/Proximity Caves | Build established: Construct 23140 | -3/Proximity Caves | Entered Research 23140 | -3/Research | Accompanied by 3 allies 23140 | -3/Research | Evolved 2 slots: Utility x2 23142 | -3/Research | Loaded intel: 138 machine locations 23143 | -3/Research | Loaded intel: 47 interactive machine locations 23238 | -3/Research | Identified exit to Armory 23238 | -3/Research | Identified exit to Quarantine 23340 | -3/Research | Revision forces began assault on 0b10 23482 | -3/Research | Found Prototype Device 23482 | -3/Research | Identified Adv. Kinecellerator 23647 | -3/Research | Destroyed B-90 Cyclops 23683 | -3/Research | Found Prototype Protection 23683 | -3/Research | Identified Centrium Heavy Armor Plating 23727 | -3/Research | Discovered new exit (range 3) 23729 | -3/Research | Identified exit to Research 23840 | -3/Research | Research terminal network offline 23891 | -3/Research | Found Prototype Processor 23891 | -3/Research | Identified Exp. Target Analyzer 23897 | -3/Research | Found Imp. Powered Armor 24020 | -3/Research | Found Prototype Device 24020 | -3/Research | Identified Imp. Particle Accelerator 24040 | -3/Research | Spotted Striker 24059 | -3/Research | Spotted Striker 24073 | -3/Research | Entered Quarantine 24090 | -3/Quarantine | Identified Vortex Cannon (x2) 24090 | -3/Quarantine | Identified Vortex Rail (x2) 24108 | -3/Quarantine | Found Alien Artifact 24298 | -3/Quarantine | Cryocooling Duct disabled 24313 | -3/Quarantine | Ambient heat levels rising (+20) 24313 | -3/Quarantine | Non-combat units ordered to evacuate 24330 | -3/Quarantine | Found Alien Artifact 24330 | -3/Quarantine | Identified Phase Redirector 24782 | -3/Quarantine | Found Unknown Protection 24782 | -3/Quarantine | Identified Hvy. Reactive Plating 24900 | -3/Quarantine | Spotted Alpha 7 24914 | -3/Quarantine | Found Alien Artifact 24914 | -3/Quarantine | Identified Hpw. Transdimensional Reconstructor 24914 | -3/Quarantine | Warped through subspace 24914 | -3/Quarantine | Discovered exit to Research (range 9) 25018 | -3/Quarantine | Found Alien Artifact 25018 | -3/Quarantine | Identified Dimensional Node Initializer 25018 | -3/Quarantine | Initialized slip node 25022 | -3/Quarantine | Found Dimensional Node Initializer 25026 | -3/Quarantine | Found Hpw. Transdimensional Reconstructor 25031 | -3/Quarantine | Found Alien Artifact 25206 | -3/Quarantine | Spotted Fortress 25257 | -3/Quarantine | Discovered new exit (range 5) 25257 | -3/Quarantine | Discovered new exit (range 6) 25258 | -3/Quarantine | Identified exit to Section 7 25260 | -3/Quarantine | Identified exit to Protoforge 25264 | -3/Quarantine | Entered Protoforge 25577 | -3/Protoforge | Spotted Hotshot 25577 | -3/Protoforge | Spotted Hotshot 25577 | -3/Protoforge | Spotted Hotshot 25643 | -3/Protoforge | Destroyed Hotshot 25689 | -3/Protoforge | Spotted Hotshot 25711 | -3/Protoforge | Destroyed Hotshot 25715 | -3/Protoforge | Destroyed Hotshot 25722 | -3/Protoforge | Destroyed Hotshot 25743 | -3/Protoforge | Destroyed 7 combat bots 25794 | -3/Protoforge | Spotted B-86 Titan 25935 | -3/Protoforge | Spotted AP7-3 25935 | -3/Protoforge | Spotted AP7-3 26011 | -3/Protoforge | Initialized slip node 26058 | -3/Protoforge | Found Prototype Protection 26058 | -3/Protoforge | Identified Cep. Core Shell 26066 | -3/Protoforge | Found Prototype Device 26066 | -3/Protoforge | Identified Cep. Antimissile System 26072 | -3/Protoforge | Found Cep. Antimissile System 26077 | -3/Protoforge | Found Prototype Device 26077 | -3/Protoforge | Identified Exp. System Purifier 26081 | -3/Protoforge | Found Exp. System Purifier 26097 | -3/Protoforge | Spotted Decapitator 26099 | -3/Protoforge | Spotted Decapitator 26099 | -3/Protoforge | Spotted Decapitator 26099 | -3/Protoforge | Spotted Decapitator 26101 | -3/Protoforge | Destroyed Decapitator 26107 | -3/Protoforge | Destroyed Decapitator 26108 | -3/Protoforge | Destroyed Decapitator 26110 | -3/Protoforge | Destroyed Decapitator 26219 | -3/Protoforge | Found Prototype Device 26240 | -3/Protoforge | Spotted Immortal 26240 | -3/Protoforge | Spotted Immortal 26241 | -3/Protoforge | Spotted Decapitator 26241 | -3/Protoforge | Spotted Decapitator 26241 | -3/Protoforge | Spotted Decapitator 26275 | -3/Protoforge | Superfortress began startup sequence 26289 | -3/Protoforge | Identified Transdimensional Reconstructor 26359 | -3/Protoforge | Spotted V869-f 26359 | -3/Protoforge | Spotted V209-u 26359 | -3/Protoforge | Spotted V534-u 26359 | -3/Protoforge | Spotted V160-w 26404 | -3/Protoforge | System corruption reached 10% 26408 | -3/Protoforge | Destroyed V534-u 26434 | -3/Protoforge | Core integrity fell below 50% 26434 | -3/Protoforge | System corruption reached 30% 26438 | -3/Protoforge | Destroyed V160-w 26441 | -3/Protoforge | Destroyed V869-f 26458 | -3/Protoforge | Lost 4 parts (1n1u2w) 26470 | -3/Protoforge | Found Prototype Processor 26470 | -3/Protoforge | Identified Spectral Analyzer 26616 | -3/Protoforge | Identified Crosscalibrator 26760 | -3/Protoforge | Forge Plexus network access discovered 26789 | -3/Protoforge | Destroyed Decapitator 26796 | -3/Protoforge | Destroyed Decapitator 26801 | -3/Protoforge | Destroyed Decapitator 26806 | -3/Protoforge | Found Prototype Launcher 26878 | -3/Protoforge | Spotted V601-a 26894 | -3/Protoforge | Destroyed V601-a 26899 | -3/Protoforge | Found Exp. Kinecellerator 26909 | -3/Protoforge | Found Cep. Hypertargeting System 26929 | -3/Protoforge | Found Cep. Countertargeting System 26931 | -3/Protoforge | Found Cep. Networked Targeting System 27237 | -3/Protoforge | Spotted Decapitator 27237 | -3/Protoforge | Spotted Decapitator 27238 | -3/Protoforge | Spotted Decapitator 27410 | -3/Protoforge | Found Cep. Deflector Sword 27452 | -3/Protoforge | Found Cep. Disintegration Ray 27514 | -3/Protoforge | First assault squad dispatched 27850 | -3/Protoforge | Found Faulty Cep. Deflector Sword 27855 | -3/Protoforge | Found Faulty Cep. Deflector Sword 28154 | -3/Protoforge | Destroyed Decapitator 28156 | -3/Protoforge | Destroyed Decapitator 28158 | -3/Protoforge | Destroyed Decapitator 28278 | -3/Protoforge | Destroyed 7 combat bots 28287 | -3/Protoforge | Spotted Decapitator 28287 | -3/Protoforge | Spotted Decapitator 28287 | -3/Protoforge | Spotted Decapitator 28287 | -3/Protoforge | Spotted Decapitator 28289 | -3/Protoforge | Destroyed Decapitator 28295 | -3/Protoforge | Destroyed Decapitator 28300 | -3/Protoforge | Destroyed Decapitator 28302 | -3/Protoforge | Destroyed Decapitator 28310 | -3/Protoforge | Spotted V270-g 28310 | -3/Protoforge | Spotted V770-m 28327 | -3/Protoforge | Found Cep. NT7 Matterbank 28339 | -3/Protoforge | Spotted V864-y 28343 | -3/Protoforge | Spotted V150-h 28346 | -3/Protoforge | Found Cep. Antigrav Storage Unit 28349 | -3/Protoforge | Found Cep. Chromion Battery 28351 | -3/Protoforge | Found Cep. NT7 Matterbank 28363 | -3/Protoforge | Destroyed V150-h 28369 | -3/Protoforge | Destroyed V864-y 28370 | -3/Protoforge | Found Cep. Chromion Battery 28380 | -3/Protoforge | Destroyed V770-m 28388 | -3/Protoforge | Found Prototype Device 28388 | -3/Protoforge | Identified Exp. Shield Generator 28393 | -3/Protoforge | Found Faulty Cep. Matter Streamer 28395 | -3/Protoforge | Found Faulty Cep. Matter Streamer 28408 | -3/Protoforge | Found Prototype Processor 28408 | -3/Protoforge | Identified Exp. Armor Integrity Analyzer 28415 | -3/Protoforge | Found Exp. EM Shield 28419 | -3/Protoforge | Found Exp. Shield Generator 28424 | -3/Protoforge | Found Prototype Device 28424 | -3/Protoforge | Identified Exp. Shock Absorption System 28430 | -3/Protoforge | Found Cep. Matter Streamer 28472 | -3/Protoforge | Spotted Decapitator 28472 | -3/Protoforge | Spotted Decapitator 28472 | -3/Protoforge | Spotted Decapitator 28472 | -3/Protoforge | Spotted Decapitator 28497 | -3/Protoforge | Found Prototype Launcher 28507 | -3/Protoforge | Identified Cep. Concussive Dispersal Blaster 28511 | -3/Protoforge | Destroyed Decapitator 28515 | -3/Protoforge | Destroyed Decapitator 28517 | -3/Protoforge | Destroyed Decapitator 28522 | -3/Protoforge | Destroyed Decapitator 28570 | -3/Protoforge | Found Cep. Phase Shift Module 28573 | -3/Protoforge | Destroyed 8 combat bots 28581 | -3/Protoforge | Found Cep. RG22 Armor 28583 | -3/Protoforge | Found Cep. RG22 Armor 28592 | -3/Protoforge | Spotted AP7-3 28593 | -3/Protoforge | Spotted AP7-3 28638 | -3/Protoforge | Destroyed AP7-3 28651 | -3/Protoforge | Destroyed AP7-3 28679 | -3/Protoforge | Found Prototype Device 28679 | -3/Protoforge | Identified Exp. ECM Suite 28705 | -3/Protoforge | Found Cep. Cloak Mesh 28708 | -3/Protoforge | Found Faulty Cep. Thermoelectric Network 28710 | -3/Protoforge | Found Faulty Cep. Thermoelectric Network 28733 | -3/Protoforge | Warped through subspace to slip node 28765 | -3/Protoforge | Spotted Hotshot 28765 | -3/Protoforge | Spotted Hotshot 28765 | -3/Protoforge | Spotted Hotshot 28765 | -3/Protoforge | Spotted Hotshot 28765 | -3/Protoforge | Spotted Hotshot 28767 | -3/Protoforge | Discovered exit to Research (range 18) 28891 | -3/Protoforge | Entered Research 28891 | -2/Research | Warlord forces began assault on 0b10 28891 | -2/Research | Evolved 2 slots: Utility x2 28916 | -2/Research | Distinguished unit "Offensive Angels" dispatched to help 28916 | -2/Research | Distinguished unit "Metalheads" dispatched to help 29001 | -2/Research | Research machine network offline 29001 | -2/Research | Lost 6 allies 29079 | -2/Research | Discovered new exit (range 14) 29202 | -2/Research | Discovered new exit (range 15) 29223 | -2/Research | Identified exit to Testing 29236 | -2/Research | Borebot progress halted 29332 | -2/Research | Met up with Warlord 29354 | -2/Research | Found Prototype Processor 29354 | -2/Research | Identified Exp. Melee Analysis Suite 29393 | -2/Research | Met DD-05H 29418 | -2/Research | Discovered exit to Testing (range 17) 29435 | -2/Research | Borebot progress halted 29623 | -2/Research | Spotted Striker 29660 | -2/Research | Lost 4 allies 29727 | -2/Research | Spotted Striker 29730 | -2/Research | Destroyed Striker 29757 | -2/Research | Borebot progress halted 29938 | -2/Research | Spotted Executioner 29961 | -2/Research | Warlord invited to help at Command 29961 | -2/Research | Given Cave Seal Controls access code 29980 | -2/Research | Spotted B-90 Cyclops 30082 | -2/Research | Spotted Executioner 30091 | -2/Research | Found Prototype Hackware 30134 | -2/Research | Entered Testing 30156 | -2/Testing | Found Prototype Energy Gun 30156 | -2/Testing | Identified Warp Gun 30258 | -2/Testing | Found Prototype Energy Cannon 30258 | -2/Testing | Identified Null Cannon 30260 | -2/Testing | Identified Exp. Hacking Suite 30309 | -2/Testing | Unchained authorized (6S-H0T) 30386 | -2/Testing | Found Prototype Ballistic Cannon 30386 | -2/Testing | Identified Perforator 30449 | -2/Testing | Destroyed 6S-H0T 30472 | -2/Testing | Found Prototype Device 30472 | -2/Testing | Identified Zeronet Interface 30503 | -2/Testing | Found Prototype Ballistic Cannon 30503 | -2/Testing | Identified Omega Cannon 30610 | -2/Testing | Found Prototype Device 30610 | -2/Testing | Identified Exp. Thermal Shield 30621 | -2/Testing | Discovered new exit (range 5) 30622 | -2/Testing | Identified exit to Access 30837 | -2/Testing | Spotted Striker 30838 | -2/Testing | Spotted Striker 30969 | -2/Testing | Found Prototype Protection 31015 | -2/Testing | Found Prototype Energy Cannon 31015 | -2/Testing | Identified Disintegrator 31164 | -2/Testing | Entered Access 31164 | -1/Access | Evolved 2 slots: Utility x1, Weapon x1 31223 | -1/Access | Spotted B-99 Colossus 31298 | -1/Access | Garrison activated, responded to threat 31482 | -1/Access | Build established: Ninja 31681 | -1/Access | Discovered new exit (range 7) 31683 | -1/Access | Identified exit to Command 31692 | -1/Access | Entered Command 31692 | -1/Command | Accompanied by 4 allies 31799 | -1/Command | Spotted B-99 Colossus 31877 | -1/Command | Destroyed B-99 Colossus 31948 | -1/Command | Identified exit to Surface 31966 | -1/Command | Spotted B-99 Colossus 32064 | -1/Command | Found Prototype Device 32064 | -1/Command | Identified Exp. Transmission Jammer 32149 | -1/Command | Disengaged cave seal 32149 | -1/Command | Derelicts emerged from the dark tunnel 32149 | -1/Command | Welcomed Warlord to Command 32192 | -1/Command | First assault squad dispatched 32259 | -1/Command | Build established: Gunner 32369 | -1/Command | Spotted M Guard 32369 | -1/Command | Spotted M Guard 32369 | -1/Command | Spotted Combat Programmer 32369 | -1/Command | Spotted Combat Programmer 32375 | -1/Command | Warlord commented on Warlord statues 32394 | -1/Command | Destroyed Combat Programmer 32401 | -1/Command | All MAIN.C guards destroyed 32404 | -1/Command | Identified SHELL Armor 32418 | -1/Command | Met MAIN.C 32423 | -1/Command | 0b10 Conduit disabled 32426 | -1/Command | Lost 11 allies 32456 | -1/Command | Warlord shut down involuntarily 32458 | -1/Command | Hacked MAIN.C using A7's code 32465 | -1/Command | Destroyed MAIN.C Shell 32466 | -1/Command | MAIN.C activated Command garrisons 32513 | -1/Command | Destroyed MAIN.C 32520 | -1/Command | Discovered exit to Surface (range 33) 32520 | -1/Command | Discovered exit to Surface (range 102) 32520 | -1/Command | Extracted map data and part IDs from MAIN.C's data core 32524 | -1/Command | Found Hpw. Disruptor Cannon 32541 | -1/Command | Lost 12 allies 32643 | -1/Command | Phase Generator disabled 32820 | -1/Command | Build established: Mutant 32888 | -1/Command | Destroyed 7 combat bots 33204 | -1/Command | Attacked by Warlord forces 33451 | -1/Command | Found Prototype Ballistic Cannon 33451 | -1/Command | Identified Blast Cannon 33744 | -1/Command | Build established: Construct 36556 | -1/Command | Found Exp. Core Analyzer 36557 | -1/Command | Found Exp. System Purifier 36904 | -1/Command | Build established: Scavenger-Construct 36911 | -1/Command | Found Exp. Core Analyzer 37306 | -1/Command | Found Zero-point Reactor 37307 | -1/Command | Found Zero-point Reactor 37734 | -1/Command | Warped through subspace to slip node 37734 | -1/Command | Discovered new exit (range 4) 37741 | -1/Command | Entered Access_0 37743 | -1/Access_0 | Met Architect 37744 | -1/Access_0 | Destroyed A8 37752 | -1/Access_0 | Architect warped through subspace 37769 | -1/Access_0 | Found Core Regenerator 37776 | -1/Access_0 | Destroyed Architect 37777 | -1/Access_0 | Architect triggered a singularity event 37780 | -1/Access_0 | Extracted unknown sensor trigger ID from Architect's data core 37781 | -1/Access_0 | Found Prototype Hackware 37781 | -1/Access_0 | Identified Architect God Chip D 37784 | -1/Access_0 | Found Hpw. Transdimensional Reconstructor 37784 | -1/Access_0 | Warped through subspace to slip node 37784 | -1/Access_0 | Discovered exit to Surface (range 8) 37788 | -1/Access_0 | Crushed by singularity! Last Messages --------------- 37779_ A0_COM: 9. 37779_ Dropped Adv. Heavy Siege Treads. 37780_ A0_COM: 8. 37780_ Acquired data core, extracted unknown sensor trigger ID. 37781_ A0_COM: 7. 37781_ Acquired Prototype Hackware. 37781_ Identified Architect God Chip D. 37782_ A0_COM: 6. 37783_ A0_COM: 5. 37783_ Discarded Architect God Chip D. 37784_ A0_COM: 4. 37784_ Acquired Hpw. Transdimensional Reconstructor. 37784_ Warped through subspace, drawn to slip node. 37784_ EXIT=FOUND: SURFACE 37785_ A0_COM: 3. 37786_ A0_COM: 2. 37787_ A0_COM: 1. Map ----- +----------------------------------------------------+ | | | | | | | | | | | | | | | | | | | | | | | | | | | | | | | ?????????????????????????????????????????????????? | | ?????????????????????????????????????????????????? | | ?????????????????????????????????????????????????? | | ?????????????????????????????????????????????????? | | ?????????????????????????????????????????????????? | | ?????????????????????????????????????????????????? | | ????????????????????????###??????????????????????? | | ???????????????????????## ##?????????????????????? | | ???????????????????????# #?????????????????????? | | ???????????????????????# < #?????????????????????? | | ??????????????????????## @ #?????????????????????? | | ??????????????????????# #?????????????????????? | | ??????????????????????# ##?????????????????????? | | ??????????????????????## #?????????????????????? | | ??????????????????????# #?????????????????????? | | ??????????????????????# ##?????????????????????? | | ??????????????????????# < #?????????????????????? | | ??????????????????????# ##?????????????????????? | | ??????????????????????## #??????????????????????? | | ???????????????????????####??????????????????????? | | ?????????????????????????????????????????????????? | | ?????????????????????????????????????????????????? | | ?????????????????????????????????????????????????? | | ?????????????????????????????????????????????????? | | ?????????????????????????????????????????????????? | | ?????????????????????????????????????????????????? | | ?????????????????????????????????????????????????? | | ?????????????????????????????????????????????????? | | ?????????????????????????????????????????????????? | | ?????????????????????????????????????????????????? | | ?????????????????????????????????????????????????? | | ?????????????????????????????????????????????????? | | ?????????????????????????????????????????????????? | | ?????????????????????????????????????????????????? | | ?????????????????????????????????????????????????? | +----------------------------------------------------+ Best States ------------- Heat Dissipation 108 Coolant Potential 100 Energy Generation 57 Energy Capacity 2034 Matter Stores 300 Matter Capacity 300 Sight Range 24 Robot Scan Range 18 Terrain Scan Density 10 ECM Strength 3 Jamming Range 16 Cloak Strength 6 EM Shielding 3 Corruption Block 15 Armor Coverage 900 Resistance: KI 40 Resistance: TH 50 Resistance: EM 75 Point Defense Rating 480 Projectile Deflection 15 Weapon Cycling 25 Phase Shifting 25 Evasion (%) 100 Targeting Accuracy 12 Core Analysis 8 Armor Integrity Analysis 50 Recoil Reduction 6 Matter Filtering 50 Particle Charging 40 Kinecelleration 66 Salvage Targeting 9 Offensive Hacking 16 Defensive Hacking 16 Authchip Count 1 Trap Extractor Capacity 8 Item Schematics ----------------- Enh. Autogun | -8/Materials | Scanalyzed Flak Cannon | -8/Recycling | Hacked Adv. System Restoration Module | -6/Factory | Scanalyzed Antigrav Array | -6/Factory | Scanalyzed Med. Armored Exoskeleton | -6/Extension | Hacked Field Propulsion Array | -6/Extension | Hacked Hyp. Gauss Rifle | -6/Extension | Hacked Centrium Medium Armor Plating | -5/Factory | Scanalyzed Exp. Cooling System | -5/Factory | Hacked Variable Charge Gun | -5/Factory | Hacked Assault Drone Bay | -5/Zhirov | Free Exp. Heat Sink | -5/Zhirov | Free Exp. Optical Array | -5/Zhirov | Free Imp. Arc Thrower | -5/Zhirov | Free Adv. Hacking Suite | -4/Factory | Scanalyzed Adv. Powered Armor | -4/Factory | Scanalyzed Core Analyzer | -4/Factory | Scanalyzed Exp. Utility Shielding | -4/Factory | Scanalyzed Quantum Capacitor | -4/Factory | Scanalyzed Graphene Brace | -4/Factory | Scanalyzed Exp. EM Shield | -4/Factory | Scanalyzed Adv. Sensor Array | -4/Factory | Scanalyzed Adv. Weapon Cycler | -4/Factory | Scanalyzed Adv. Heavy Siege Treads | -4/Factory | Hacked Cmb. Linear Gravjet | -4/Factory | Hacked Enh. Nova Cannon | -4/Factory | Hacked Linear Accelerator | -4/Factory | Hacked Helical Railgun | -2/Testing | Archive Vibroblade | -2/Testing | Archive Imp. Q-thruster | -2/Testing | Archive Exp. Weapon Shielding | -2/Testing | Archive Exp. Reaction Control System | -2/Testing | Archive Hvy. Gatling Laser | -2/Testing | Archive Robot Schematics ------------------ M-13 Machinist | -10/Materials | Hacked K-01 Serf | -4/Upper Caves | Archive T-07 Excavator | -4/Upper Caves | Archive A-02 Transporter | -4/Upper Caves | Archive A-15 Conveyor | -4/Upper Caves | Archive R-06 Scavenger | -4/Upper Caves | Archive R-10 Processor | -4/Upper Caves | Archive M-14 Sweeper | -4/Upper Caves | Archive M-22 Extractor | -4/Upper Caves | Archive M-30 Cleanser | -4/Upper Caves | Archive M-28 Smith | -4/Upper Caves | Archive M-36 Artificer | -4/Upper Caves | Archive O-16 Technician | -4/Upper Caves | Archive O-24 Administrator | -4/Upper Caves | Archive O-32 Director | -4/Upper Caves | Archive W-16 Scout | -4/Upper Caves | Archive W-25 Informer | -4/Upper Caves | Archive W-44 Eye | -4/Upper Caves | Archive S-10 Pest | -4/Upper Caves | Archive S-27 Virus | -4/Upper Caves | Archive S-43 Plague | -4/Upper Caves | Archive G-34 Mercenary | -4/Upper Caves | Archive G-47 Trooper | -4/Upper Caves | Archive G-50 Soldier | -4/Upper Caves | Archive G-67 Veteran | -4/Upper Caves | Archive G-73 Enforcer | -4/Upper Caves | Archive B-36 Bruiser | -4/Upper Caves | Archive B-48 Gladiator | -4/Upper Caves | Archive B-60 Warrior | -4/Upper Caves | Archive B-74 Champion | -4/Upper Caves | Archive L-31 Rogue | -4/Upper Caves | Archive L-41 Fighter | -4/Upper Caves | Archive L-61 Swordsman | -4/Upper Caves | Archive Y-45 Defender | -4/Upper Caves | Archive Y-54 Guardian | -4/Upper Caves | Archive Y-64 Sentinel | -4/Upper Caves | Archive Y-72 Warden | -4/Upper Caves | Archive D-53 Grenadier | -4/Upper Caves | Archive D-63 Destroyer | -4/Upper Caves | Archive D-83 Annihilator | -4/Upper Caves | Archive X-57 Shotgunner | -4/Upper Caves | Archive X-62 Marksman | -4/Upper Caves | Archive X-67 Chaingunner | -4/Upper Caves | Archive X-72 Disruptor | -4/Upper Caves | Archive X-77 Beamer | -4/Upper Caves | Archive X-82 Rainmaker | -4/Upper Caves | Archive X-87 Electro | -4/Upper Caves | Archive H-55 Commando | -4/Upper Caves | Archive H-66 Slayer | -4/Upper Caves | Archive H-77 Assassin | -4/Upper Caves | Archive H-88 Terminator | -4/Upper Caves | Archive P-60 Hacker | -4/Upper Caves | Archive P-70 Sage | -4/Upper Caves | Archive P-80 Master | -4/Upper Caves | Archive Fabricated ------------ Y-54 Guardian | x2 | -5/Factory | Preloaded Imp. Dynamic Insulation System | x2 | -5/Factory | Preloaded Biometal Medium Treads | x2 | -4/Factory | Preloaded Adv. System Restoration Module | x2 | -4/Factory Repaired ---------- Imp. Dynamic Insulation System | 16% | -6/Extension | Broken Graphene Brace | 72% | -5/Factory Centrium Medium Armor Plating | 76% | -5/Factory Prc. Matter Filter | 99% | -5/Factory | Broken Adv. Powered Armor | 60% | -5/Factory Studied --------- Com. Wheel | -8/Materials | Hacked Alien Tech Used ----------------- Integrated Reactor Phase Redirector High-powered Transdimensional Reconstructor Dimensional Node Initializer Transdimensional Reconstructor Achievements -------------- Blink Of An Eye Great Explorer No Room For Error Off Switch Challenges ------------ None Game ------ Seed ShockboltAssaultCarapace Manual? 0 Play Time 10:36:53 Cumulative 418.5 hours Start 2026.01.11 @ 23:38:01 End 2026.01.13 @ 14:25:26 Sessions 9 Manual Loads 0 Difficulty Rogue Special Mode None Game No. 149 Rogue 149 Adventurer 0 Explorer 0 Win Type - Total 10 Types 5/0/1/1/0/0/0/1/0/2 Lore% 86 Gallery% 81 Achievement% 72 Wizard Run 0 Options --------- Layout 1 ASCII 0 Keyboard 0 Movement Mouse Keybinds 0 Fullscreen 2 Font 32/SmallcapsGlow Map View 50x35 Zoom Use 0% Tactical HUD 1 Map Filters NONE Filters NONE Steam 1 RUN: 094c6729-005b-4ffd-b7b0-145cbd785c47